{"text_format":"1","workbook":"xlsx","n_sheets":14,"sheets":["Compilado","Enero ","Febrero","Marzo","Abril","Mayo","Junio","Julio","Agosto","Septiembre","Octubre","Noviembre","Diciembre","Consolidado"],"not_rendered":{"charts":0,"images":12,"macros":1,"external_links":0,"defined_names":12,"comments":0,"pivot_tables":0},"unopened":[],"bounds":{"document_bytes":16777216,"sheet_cells":100000,"rows_first":2000,"rows_last":500,"rows_between":2000,"halvings":0,"cell_chars":16384,"cell_head_chars":4096},"cells_cut":0,"cells_raw":0,"read":"whole","date_system":"1900"}

{"sheet":"Compilado","index":0,"n_rows":27,"n_cols":8,"rows_kept":27,"cut":false,"hidden":false,"merged":[[27,0,28,0],[1,1,1,4],[0,0,0,7],[22,1,23,1],[25,2,25,3],[20,1,20,3],[2,6,2,7],[15,0,15,1]]}
["REGISTRO DE OPERATIVO AÑO 2025"]
[]
[2025,"CIERRE DE MES","ACUMULADO","RENT.","EFEC.",null,"Estadisticas del 2025"]
["ENERO",{"$f":"'Enero '!$O$18","v":-16},{"$f":"B4","v":-16},{"$f":"'Enero '!$O$16","v":-1.6000000000000458E-3},{"$f":"'Enero '!$R$9","v":0},null,"Numero total de Trades en todo el año",{"$f":"Consolidado!$O$9","v":0}]
["FEBRERO",{"$f":"Febrero!$O$18","v":-16},{"$f":"C4+B5","v":-32},{"$f":"Febrero!$O$16","v":-1.6025641025640969E-3},{"$f":"Febrero!$R$9","v":0},null,"Numero total de Trades Ganadores en todo el año",{"$f":"Consolidado!$P$9","v":0}]
["MARZO",{"$f":"Marzo!$O$18","v":-16},{"$f":"C5+B6","v":-48},{"$f":"Marzo!$O$16","v":-1.6051364365970988E-3},{"$f":"Marzo!$R$9","v":0},null,"Numero total de Trades Perdedores en todo el año",{"$f":"Consolidado!$Q$9","v":0}]
["ABRIL",{"$f":"Abril!$O$18","v":-16},-64,{"$f":"Abril!$O$16","v":-1.607717041800627E-3},{"$f":"Abril!$R$9","v":0},null,"Numero de dias sin trade en todo el año",{"$f":"Consolidado!$Q$26","v":265}]
["MAYO",{"$f":"Mayo!$O$18","v":-16},-80,{"$f":"Mayo!$O$16","v":-1.6103059581320522E-3},{"$f":"Mayo!$R$9","v":0},null,"Numero de dias operables",{"$f":"Consolidado!$O$9+Consolidado!$Q$26","v":265}]
["JUNIO",{"$f":"Junio!$O$18","v":-16},-96,{"$f":"Junio!$O$16","v":-1.612903225806428E-3},{"$f":"Junio!$R$9","v":0},null,"Max Perdida Seguida diaria ",{"$f":"Consolidado!$O$23","v":0}]
["JULIO",{"$f":"Julio!$O$18","v":-16},-112,{"$f":"Julio!$O$16","v":-1.615508885298822E-3},{"$f":"Julio!$R$9","v":0},null,"Maximo de perdida consecutiva (en dólares)",{"$f":"Consolidado!$Q$19","v":0}]
["AGOSTO",{"$f":"Agosto!$O$18","v":-16},-128,{"$f":"Agosto!$O$16","v":-1.6181229773463146E-3},{"$f":"Agosto!$R$9","v":0},null,"Maxima ganacia seguida diaria",{"$f":"Consolidado!$N$23","v":0}]
["SEPTIEMBRE",{"$f":"Septiembre!$O$18","v":-15},-143,{"$f":"Septiembre!$O$16","v":-1.5194489465153449E-3},{"$f":"Septiembre!$R$9","v":0},null,"Maxima ganancia consecutiva (en dólares)",{"$f":"Consolidado!$R$19","v":0}]
["OCTUBRE",{"$f":"Octubre!$O$18","v":-16},-159,{"$f":"Octubre!$O$16","v":-1.6232119306076598E-3},{"$f":"Octubre!$R$9","v":0},null,"Maximo trade Ganador (en dólares)",{"$f":"Consolidado!$R$22","v":0}]
["NOVIEMBRE",{"$f":"Noviembre!$O$18","v":-16},-175,{"$f":"Noviembre!$O$16","v":-1.625851031399228E-3},{"$f":"Noviembre!$R$9","v":0},null,"Maximo trade Perdedor  (en dólares)",{"$f":"Consolidado!$Q$22","v":0}]
["DICIEMBRE",{"$f":"Diciembre!$O$18","v":-16},-191,{"$f":"Diciembre!$O$16","v":-1.6284987277354057E-3},{"$f":"Diciembre!$R$9","v":0},null,"Promedio de Stops",{"$f":"IFERROR(Consolidado!$N$26/H6,0)","v":0}]
["Total",null,{"$f":"SUM(B4:B15)","v":-191},{"$f":"C16/C23","v":-1.9099999999999999E-2},{"$f":"AVERAGE(E4:E15)","v":0},null,"Promedio de Takes",{"$f":"IFERROR(Consolidado!$O$26/H5,0)","v":0}]
[null,null,null,null,null,null,"Relacion estimada ratio",{"$f":"IFERROR($H$16/$H$15,0)","v":0}]
[]
[null,"Promedio mensual",{"$f":"$C$16/12","v":-15.916666666666666}]
[]
[null,"Relacion con el capital"]
[]
[null,"capital inicial (coloca tu capital)",10000,null,"COLOCAR AQUI EL CAPITAL INICIAL "]
[]
[]
[null,"Capital al dia:",{"$f":"$C$23+$C$16","v":9809}]
[null,"Stop maximo:",0.04,{"$f":"C26*C27","v":392.36}]

{"sheet":"Enero ","index":1,"n_rows":30,"n_cols":22,"rows_kept":30,"cut":false,"hidden":false,"merged":[[28,13,28,14],[29,13,29,14],[20,13,20,14],[8,17,9,17],[6,13,9,13],[6,14,7,14],[6,15,6,16],[6,17,7,17],[8,14,9,14],[8,15,9,15],[8,16,9,16]]}
["Table Name ",{"$f":"Enero[[#Headers],[Dates]]","v":"Dates"},null,null,null,null,null,null,null,null,null,null,null,null,null,null,null,null,null,null,"Table Name ",{"$f":"Enero_Semanal[[#Headers],[Numero De Semana]]","v":"Numero De Semana"}]
["Table Name",{"$f":"MID(_xlfn.FORMULATEXT(B1),2,FIND(\"[\",_xlfn.FORMULATEXT(B1))-2)","v":"Enero"},null,null,null,null,null,null,null,null,null,null,null,null,null,null,null,null,null,null,"Table Name",{"$f":"MID(_xlfn.FORMULATEXT(V1),2,FIND(\"[\",_xlfn.FORMULATEXT(V1))-2)","v":"Enero_Semanal"}]
["Saldo",{"$f":"Compilado!$C$23","v":10000}]
["Fecha de Comienzo","2025-01-01"]
["Fecha de Fin","2025-01-31"]
[]
[null,"Dates","STOP","TAKE","RESULTADO","SALDO","Ganancia Diaria","Numero de Semana","Do not delete",null,null,null,null,"NUMERO DE OPERACIONES","TOTAL OPERACIONES","TIPO",null,"EFECTIVIDAD"]
[null,"2025-01-01",null,null,{"$f":"IF(D8<>\"\",\"POSITIVA\",IF(C8<>\"\",\"NEGATIVA\",\"\"))","v":""},{"$f":"IF(ISNUMBER($F7),$F7-$C8+$D8,$B$3-$C8+$D8)","v":10000},{"$f":"IF(ISNUMBER($G7),$G7-$C8+$D8,0-$C8+$D8)","v":0},{"$f":"IFERROR(WEEKNUM(B8),\"\")","v":1},null,null,null,null,null,null,null,"BUENAS","MALAS"]
[null,"2025-01-02",null,null,"",10000,0,1,null,null,null,null,null,null,{"$f":"$P$9+$Q$9","v":0},{"$f":"COUNTIF(Enero[RESULTADO],\"POSITIVA\")","v":0},{"$f":"COUNTIF(Enero[RESULTADO],\"NEGATIVA\")","v":0},{"$f":"IFERROR($P$9/$O$9,0)","v":0}]
[null,"2025-01-03",null,null,"",10000,0,1]
[null,"2025-01-06",null,null,"",10000,0,2]
[null,"2025-01-07",null,null,"",10000,0,2,null,null,null,null,null,"Total",{"$f":"IFERROR(LOOKUP(2,1/(Enero[SALDO]<>\"\"),Enero[SALDO])-$O$14,0)","v":9984},null,"Numero De Semana","Total"]
[null,"2025-01-08",null,null,"",10000,0,2,null,null,null,null,null,null,null,null,1,{"$f":"SUMIF(Consolidado_Semanal[Numero De Semana],Q13,Consolidado_Semanal[Total])","v":0}]
[null,"2025-01-09",null,null,"",10000,0,2,null,null,null,null,null,"Datos del mercado",16,null,2,{"$f":"SUMIF(Consolidado_Semanal[Numero De Semana],Q14,Consolidado_Semanal[Total])","v":0}]
[null,"2025-01-10",null,null,"",10000,0,2,null,null,null,null,null,null,null,null,3,{"$f":"SUMIF(Consolidado_Semanal[Numero De Semana],Q15,Consolidado_Semanal[Total])","v":0}]
[null,"2025-01-13",null,null,"",10000,0,3,null,null,null,null,null,"Beneficio / Rentabilidad",{"$f":"IFERROR(($O$12/$B$3)-1,0)","v":-1.6000000000000458E-3},null,4,{"$f":"SUMIF(Consolidado_Semanal[Numero De Semana],Q16,Consolidado_Semanal[Total])","v":0}]
[null,"2025-01-14",null,null,"",10000,0,3,null,null,null,null,null,null,null,null,5,{"$f":"SUMIF(Consolidado_Semanal[Numero De Semana],Q17,Consolidado_Semanal[Total])","v":0}]
[null,"2025-01-15",null,null,"",10000,0,3,null,null,null,null,null,"Total Mes",{"$f":"IFERROR(LOOKUP(2,1/(Enero[Ganancia Diaria]<>\"\"),Enero[Ganancia Diaria])-$O$14,0)","v":-16}]
[null,"2025-01-16",null,null,"",10000,0,3]
[null,"2025-01-17",null,null,"",10000,0,3]
[null,"2025-01-20",null,null,"",10000,0,4]
[null,"2025-01-21",null,null,"",10000,0,4]
[null,"2025-01-22",null,null,"",10000,0,4]
[null,"2025-01-23",null,null,"",10000,0,4]
[null,"2025-01-24",null,null,"",10000,0,4]
[null,"2025-01-27",null,null,"",10000,0,5]
[null,"2025-01-28",null,null,"",10000,0,5]
[null,"2025-01-29",null,null,"",10000,0,5]
[null,"2025-01-30",null,null,"",10000,0,5]
[null,"2025-01-31",null,null,"",10000,0,5]

{"sheet":"Febrero","index":2,"n_rows":28,"n_cols":22,"rows_kept":28,"cut":false,"hidden":false,"merged":[[6,17,7,17],[8,14,9,14],[8,15,9,15],[8,16,9,16],[8,17,9,17],[24,13,24,14],[25,13,25,14],[6,13,9,13],[6,14,7,14],[6,15,6,16]]}
["Table Name ",{"$f":"Febrero[[#Headers],[Dates]]","v":"Dates"},null,null,null,null,null,null,null,null,null,null,null,null,null,null,null,null,null,null,"Table Name ",{"$f":"Febrero_Semanal[[#Headers],[Numero De Semana]]","v":"Numero De Semana"}]
["Table Name",{"$f":"MID(_xlfn.FORMULATEXT(B1),2,FIND(\"[\",_xlfn.FORMULATEXT(B1))-2)","v":"Febrero"},null,null,null,null,null,null,null,null,null,null,null,null,null,null,null,null,null,null,"Table Name",{"$f":"MID(_xlfn.FORMULATEXT(V1),2,FIND(\"[\",_xlfn.FORMULATEXT(V1))-2)","v":"Febrero_Semanal"}]
["Saldo",{"$f":"'Enero '!$O$12","v":9984}]
["Fecha de Comienzo","2025-02-01"]
["Fecha de Fin","2025-02-28"]
[]
[null,"Dates","STOP","TAKE","RESULTADO","SALDO","Ganancia Diaria","Numero de Semana","Do not delete",null,null,null,null,"NUMERO DE OPERACIONES","TOTAL OPERACIONES","TIPO",null,"EFECTIVIDAD"]
[null,"2025-02-03",null,null,{"$f":"IF(D8<>\"\",\"POSITIVA\",IF(C8<>\"\",\"NEGATIVA\",\"\"))","v":""},{"$f":"IF(ISNUMBER($F7),$F7-$C8+$D8,$B$3-$C8+$D8)","v":9984},{"$f":"IF(ISNUMBER($G7),$G7-$C8+$D8,0-$C8+$D8)","v":0},{"$f":"IFERROR(WEEKNUM(B8),\"\")","v":6},null,null,null,null,null,null,null,"BUENAS","MALAS"]
[null,"2025-02-04",null,null,"",9984,0,6,null,null,null,null,null,null,{"$f":"$P$9+$Q$9","v":0},{"$f":"COUNTIF(Febrero[RESULTADO],\"POSITIVA\")","v":0},{"$f":"COUNTIF(Febrero[RESULTADO],\"NEGATIVA\")","v":0},{"$f":"IFERROR($P$9/$O$9,0)","v":0}]
[null,"2025-02-05",null,null,"",9984,0,6]
[null,"2025-02-06",null,null,"",9984,0,6]
[null,"2025-02-07",null,null,"",9984,0,6,null,null,null,null,null,"Total",{"$f":"IFERROR(LOOKUP(2,1/(Febrero[SALDO]<>\"\"),Febrero[SALDO])-$O$14,0)","v":9968},null,"Numero De Semana","Total"]
[null,"2025-02-10",null,null,"",9984,0,7,null,null,null,null,null,null,null,null,6,{"$f":"SUMIF(Consolidado_Semanal[Numero De Semana],Q13,Consolidado_Semanal[Total])","v":0}]
[null,"2025-02-11",null,null,"",9984,0,7,null,null,null,null,null,"Datos del mercado",16,null,7,{"$f":"SUMIF(Consolidado_Semanal[Numero De Semana],Q14,Consolidado_Semanal[Total])","v":0}]
[null,"2025-02-12",null,null,"",9984,0,7,null,null,null,null,null,null,null,null,8,{"$f":"SUMIF(Consolidado_Semanal[Numero De Semana],Q15,Consolidado_Semanal[Total])","v":0}]
[null,"2025-02-13",null,null,"",9984,0,7,null,null,null,null,null,"Beneficio / Rentabilidad",{"$f":"IFERROR(($O$12/$B$3)-1,0)","v":-1.6025641025640969E-3},null,9,{"$f":"SUMIF(Consolidado_Semanal[Numero De Semana],Q16,Consolidado_Semanal[Total])","v":0}]
[null,"2025-02-14",null,null,"",9984,0,7]
[null,"2025-02-17",null,null,"",9984,0,8,null,null,null,null,null,"Total Mes",{"$f":"IFERROR(LOOKUP(2,1/(Febrero[Ganancia Diaria]<>\"\"),Febrero[Ganancia Diaria])-$O$14,0)","v":-16}]
[null,"2025-02-18",null,null,"",9984,0,8]
[null,"2025-02-19",null,null,"",9984,0,8]
[null,"2025-02-20",null,null,"",9984,0,8]
[null,"2025-02-21",null,null,"",9984,0,8]
[null,"2025-02-24",null,null,"",9984,0,9]
[null,"2025-02-25",null,null,"",9984,0,9]
[null,"2025-02-26",null,null,"",9984,0,9]
[null,"2025-02-27",null,null,"",9984,0,9]
[null,"2025-02-28",null,null,"",9984,0,9]
[null,null,null,null,{"$f":"IF(D28<>\"\",\"POSITIVA\",IF(C28<>\"\",\"NEGATIVA\",\"\"))","v":""},{"$f":"IF(ISNUMBER($F27),$F27-$C28+$D28,$B$3-$C28+$D28)","v":9984},{"$f":"IF(ISNUMBER($G27),$G27-$C28+$D28,0-$C28+$D28)","v":0},{"$f":"IFERROR(WEEKNUM(B28),\"\")","v":0}]

{"sheet":"Marzo","index":3,"n_rows":30,"n_cols":22,"rows_kept":30,"cut":false,"hidden":false,"merged":[[6,15,6,16],[6,17,7,17],[8,14,9,14],[8,15,9,15],[8,16,9,16],[8,17,9,17],[18,13,18,14],[26,13,26,14],[27,13,27,14],[6,13,9,13],[6,14,7,14]]}
["Table Name ",{"$f":"Marzo[[#Headers],[Dates]]","v":"Dates"},null,null,null,null,null,null,null,null,null,null,null,null,null,null,null,null,null,null,"Table Name ",{"$f":"Marzo_Semanal[[#Headers],[Numero De Semana]]","v":"Numero De Semana"}]
["Table Name",{"$f":"MID(_xlfn.FORMULATEXT(B1),2,FIND(\"[\",_xlfn.FORMULATEXT(B1))-2)","v":"Marzo"},null,null,null,null,null,null,null,null,null,null,null,null,null,null,null,null,null,null,"Table Name",{"$f":"MID(_xlfn.FORMULATEXT(V1),2,FIND(\"[\",_xlfn.FORMULATEXT(V1))-2)","v":"Marzo_Semanal"}]
["Saldo",{"$f":"Febrero!$O$12","v":9968}]
["Fecha de Comienzo","2025-03-01"]
["Fecha de Fin","2025-03-31"]
[]
[null,"Dates","STOP","TAKE","RESULTADO","SALDO","Ganancia Diaria","Numero de Semana","Do not delete",null,null,null,null,"NUMERO DE OPERACIONES","TOTAL OPERACIONES","TIPO",null,"EFECTIVIDAD"]
[null,"2025-03-03",null,null,{"$f":"IF(D8<>\"\",\"POSITIVA\",IF(C8<>\"\",\"NEGATIVA\",\"\"))","v":""},{"$f":"IF(ISNUMBER($F7),$F7-$C8+$D8,$B$3-$C8+$D8)","v":9968},{"$f":"IF(ISNUMBER($G7),$G7-$C8+$D8,0-$C8+$D8)","v":0},{"$f":"IFERROR(WEEKNUM(B8),\"\")","v":10},null,null,null,null,null,null,null,"BUENAS","MALAS"]
[null,"2025-03-04",null,null,"",9968,0,10,null,null,null,null,null,null,{"$f":"$P$9+$Q$9","v":0},{"$f":"COUNTIF(Marzo[RESULTADO],\"POSITIVA\")","v":0},{"$f":"COUNTIF(Marzo[RESULTADO],\"NEGATIVA\")","v":0},{"$f":"IFERROR($P$9/$O$9,0)","v":0}]
[null,"2025-03-05",null,null,"",9968,0,10]
[null,"2025-03-06",null,null,"",9968,0,10]
[null,"2025-03-07",null,null,"",9968,0,10,null,null,null,null,null,"Total",{"$f":"IFERROR(LOOKUP(2,1/(Marzo[SALDO]<>\"\"),Marzo[SALDO])-$O$14,0)","v":9952},null,"Numero De Semana","Total"]
[null,"2025-03-10",null,null,"",9968,0,11,null,null,null,null,null,null,null,null,10,{"$f":"SUMIF(Consolidado_Semanal[Numero De Semana],Q13,Consolidado_Semanal[Total])","v":0}]
[null,"2025-03-11",null,null,"",9968,0,11,null,null,null,null,null,"Datos del mercado",16,null,11,{"$f":"SUMIF(Consolidado_Semanal[Numero De Semana],Q14,Consolidado_Semanal[Total])","v":0}]
[null,"2025-03-12",null,null,"",9968,0,11,null,null,null,null,null,null,null,null,12,{"$f":"SUMIF(Consolidado_Semanal[Numero De Semana],Q15,Consolidado_Semanal[Total])","v":0}]
[null,"2025-03-13",null,null,"",9968,0,11,null,null,null,null,null,"Beneficio / Rentabilidad",{"$f":"IFERROR(($O$12/$B$3)-1,0)","v":-1.6051364365970988E-3},null,13,{"$f":"SUMIF(Consolidado_Semanal[Numero De Semana],Q16,Consolidado_Semanal[Total])","v":0}]
[null,"2025-03-14",null,null,"",9968,0,11,null,null,null,null,null,null,null,null,14,{"$f":"SUMIF(Consolidado_Semanal[Numero De Semana],Q17,Consolidado_Semanal[Total])","v":0}]
[null,"2025-03-17",null,null,"",9968,0,12,null,null,null,null,null,"Total Mes",{"$f":"IFERROR(LOOKUP(2,1/(Marzo[Ganancia Diaria]<>\"\"),Marzo[Ganancia Diaria])-$O$14,0)","v":-16}]
[null,"2025-03-18",null,null,"",9968,0,12]
[null,"2025-03-19",null,null,"",9968,0,12]
[null,"2025-03-20",null,null,"",9968,0,12]
[null,"2025-03-21",null,null,"",9968,0,12]
[null,"2025-03-24",null,null,"",9968,0,13]
[null,"2025-03-25",null,null,"",9968,0,13]
[null,"2025-03-26",null,null,"",9968,0,13]
[null,"2025-03-27",null,null,"",9968,0,13]
[null,"2025-03-28",null,null,"",9968,0,13]
[null,"2025-03-31",null,null,"",9968,0,14]
[null,"2023-03-30",null,null,"",9968,0,13]
[null,"2023-03-31",null,null,"",9968,0,13]

{"sheet":"Abril","index":4,"n_rows":29,"n_cols":22,"rows_kept":29,"cut":false,"hidden":false,"merged":[[6,15,6,16],[6,17,7,17],[8,14,9,14],[8,15,9,15],[8,16,9,16],[8,17,9,17],[18,13,18,14],[26,13,26,14],[27,13,27,14],[6,13,9,13],[6,14,7,14]]}
["Table Name ",{"$f":"Abril[[#Headers],[Dates]]","v":"Dates"},null,null,null,null,null,null,null,null,null,null,null,null,null,null,null,null,null,null,"Table Name ",{"$f":"Abril_Semanal[[#Headers],[Numero De Semana]]","v":"Numero De Semana"}]
["Table Name",{"$f":"MID(_xlfn.FORMULATEXT(B1),2,FIND(\"[\",_xlfn.FORMULATEXT(B1))-2)","v":"Abril"},null,null,null,null,null,null,null,null,null,null,null,null,null,null,null,null,null,null,"Table Name",{"$f":"MID(_xlfn.FORMULATEXT(V1),2,FIND(\"[\",_xlfn.FORMULATEXT(V1))-2)","v":"Abril_Semanal"}]
["Saldo",{"$f":"Marzo!$O$12","v":9952}]
["Fecha de Comienzo","2025-04-01"]
["Fecha de Fin","2025-04-30"]
[]
[null,"Dates","STOP","TAKE","RESULTADO","SALDO","Ganancia Diaria","Numero de Semana","Do not delete",null,null,null,null,"NUMERO DE OPERACIONES","TOTAL OPERACIONES","TIPO",null,"EFECTIVIDAD"]
[null,"2025-04-01",null,null,{"$f":"IF(D8<>\"\",\"POSITIVA\",IF(C8<>\"\",\"NEGATIVA\",\"\"))","v":""},{"$f":"IF(ISNUMBER($F7),$F7-$C8+$D8,$B$3-$C8+$D8)","v":9952},{"$f":"IF(ISNUMBER($G7),$G7-$C8+$D8,0-$C8+$D8)","v":0},{"$f":"IFERROR(WEEKNUM(B8),\"\")","v":14},null,null,null,null,null,null,null,"BUENAS","MALAS"]
[null,"2025-04-02",null,null,"",9952,0,14,null,null,null,null,null,null,{"$f":"$P$9+$Q$9","v":0},{"$f":"COUNTIF(Abril[RESULTADO],\"POSITIVA\")","v":0},{"$f":"COUNTIF(Abril[RESULTADO],\"NEGATIVA\")","v":0},{"$f":"IFERROR($P$9/$O$9,0)","v":0}]
[null,"2025-04-03",null,null,"",9952,0,14]
[null,"2025-04-04",null,null,"",9952,0,14]
[null,"2025-04-07",null,null,"",9952,0,15,null,null,null,null,null,"Total",{"$f":"IFERROR(LOOKUP(2,1/(Abril[SALDO]<>\"\"),Abril[SALDO])-$O$14,0)","v":9936},null,"Numero De Semana","Total"]
[null,"2025-04-08",null,null,"",9952,0,15,null,null,null,null,null,null,null,null,14,{"$f":"SUMIF(Consolidado_Semanal[Numero De Semana],Q13,Consolidado_Semanal[Total])","v":0}]
[null,"2025-04-09",null,null,"",9952,0,15,null,null,null,null,null,"Datos del mercado",16,null,15,{"$f":"SUMIF(Consolidado_Semanal[Numero De Semana],Q14,Consolidado_Semanal[Total])","v":0}]
[null,"2025-04-10",null,null,"",9952,0,15,null,null,null,null,null,null,null,null,16,{"$f":"SUMIF(Consolidado_Semanal[Numero De Semana],Q15,Consolidado_Semanal[Total])","v":0}]
[null,"2025-04-11",null,null,"",9952,0,15,null,null,null,null,null,"Beneficio / Rentabilidad",{"$f":"IFERROR(($O$12/$B$3)-1,0)","v":-1.607717041800627E-3},null,17,{"$f":"SUMIF(Consolidado_Semanal[Numero De Semana],Q16,Consolidado_Semanal[Total])","v":0}]
[null,"2025-04-14",null,null,"",9952,0,16,null,null,null,null,null,null,null,null,18,{"$f":"SUMIF(Consolidado_Semanal[Numero De Semana],Q17,Consolidado_Semanal[Total])","v":0}]
[null,"2025-04-15",null,null,"",9952,0,16,null,null,null,null,null,"Total Mes",{"$f":"IFERROR(LOOKUP(2,1/(Abril[Ganancia Diaria]<>\"\"),Abril[Ganancia Diaria])-$O$14,0)","v":-16}]
[null,"2025-04-16",null,null,"",9952,0,16]
[null,"2025-04-17",null,null,"",9952,0,16]
[null,"2025-04-18",null,null,"",9952,0,16]
[null,"2025-04-21",null,null,"",9952,0,17]
[null,"2025-04-22",null,null,"",9952,0,17]
[null,"2025-04-23",null,null,"",9952,0,17]
[null,"2025-04-24",null,null,"",9952,0,17]
[null,"2025-04-25",null,null,"",9952,0,17]
[null,"2025-04-28",null,null,"",9952,0,18]
[null,"2025-04-29",null,null,"",9952,0,18]
[null,"2025-04-30",null,null,"",9952,0,18]

{"sheet":"Mayo","index":5,"n_rows":30,"n_cols":22,"rows_kept":30,"cut":false,"hidden":false,"merged":[[6,15,6,16],[6,17,7,17],[8,14,9,14],[8,15,9,15],[8,16,9,16],[8,17,9,17],[18,13,18,14],[26,13,26,14],[27,13,27,14],[6,13,9,13],[6,14,7,14]]}
["Table Name ",{"$f":"Mayo[[#Headers],[Dates]]","v":"Dates"},null,null,null,null,null,null,null,null,null,null,null,null,null,null,null,null,null,null,"Table Name ",{"$f":"Mayo_Semanal[[#Headers],[Numero De Semana]]","v":"Numero De Semana"}]
["Table Name",{"$f":"MID(_xlfn.FORMULATEXT(B1),2,FIND(\"[\",_xlfn.FORMULATEXT(B1))-2)","v":"Mayo"},null,null,null,null,null,null,null,null,null,null,null,null,null,null,null,null,null,null,"Table Name",{"$f":"MID(_xlfn.FORMULATEXT(V1),2,FIND(\"[\",_xlfn.FORMULATEXT(V1))-2)","v":"Mayo_Semanal"}]
["Saldo",{"$f":"Abril!$O$12","v":9936}]
["Fecha de Comienzo","2025-05-01"]
["Fecha de Fin","2025-05-31"]
[]
[null,"Dates","STOP","TAKE","RESULTADO","SALDO","Ganancia Diaria","Numero de Semana","Do not delete",null,null,null,null,"NUMERO DE OPERACIONES","TOTAL OPERACIONES","TIPO",null,"EFECTIVIDAD"]
[null,"2025-05-01",null,null,{"$f":"IF(D8<>\"\",\"POSITIVA\",IF(C8<>\"\",\"NEGATIVA\",\"\"))","v":""},{"$f":"IF(ISNUMBER($F7),$F7-$C8+$D8,$B$3-$C8+$D8)","v":9936},{"$f":"IF(ISNUMBER($G7),$G7-$C8+$D8,0-$C8+$D8)","v":0},{"$f":"IFERROR(WEEKNUM(B8),\"\")","v":18},null,null,null,null,null,null,null,"BUENAS","MALAS"]
[null,"2025-05-02",null,null,"",9936,0,18,null,null,null,null,null,null,{"$f":"$P$9+$Q$9","v":0},{"$f":"COUNTIF(Mayo[RESULTADO],\"POSITIVA\")","v":0},{"$f":"COUNTIF(Mayo[RESULTADO],\"NEGATIVA\")","v":0},{"$f":"IFERROR($P$9/$O$9,0)","v":0}]
[null,"2025-05-05",null,null,"",9936,0,19]
[null,"2025-05-06",null,null,"",9936,0,19]
[null,"2025-05-07",null,null,"",9936,0,19,null,null,null,null,null,"Total",{"$f":"IFERROR(LOOKUP(2,1/(Mayo[SALDO]<>\"\"),Mayo[SALDO])-$O$14,0)","v":9920},null,"Numero De Semana","Total"]
[null,"2025-05-08",null,null,"",9936,0,19,null,null,null,null,null,null,null,null,19,{"$f":"SUMIF(Consolidado_Semanal[Numero De Semana],Q13,Consolidado_Semanal[Total])","v":0}]
[null,"2025-05-09",null,null,"",9936,0,19,null,null,null,null,null,"Datos del mercado",16,null,20,{"$f":"SUMIF(Consolidado_Semanal[Numero De Semana],Q14,Consolidado_Semanal[Total])","v":0}]
[null,"2025-05-12",null,null,"",9936,0,20,null,null,null,null,null,null,null,null,21,{"$f":"SUMIF(Consolidado_Semanal[Numero De Semana],Q15,Consolidado_Semanal[Total])","v":0}]
[null,"2025-05-13",null,null,"",9936,0,20,null,null,null,null,null,"Beneficio / Rentabilidad",{"$f":"IFERROR(($O$12/$B$3)-1,0)","v":-1.6103059581320522E-3},null,22,{"$f":"SUMIF(Consolidado_Semanal[Numero De Semana],Q16,Consolidado_Semanal[Total])","v":0}]
[null,"2025-05-14",null,null,"",9936,0,20,null,null,null,null,null,null,null,null,23,{"$f":"SUMIF(Consolidado_Semanal[Numero De Semana],Q17,Consolidado_Semanal[Total])","v":0}]
[null,"2025-05-15",null,null,"",9936,0,20,null,null,null,null,null,"Total Mes",{"$f":"IFERROR(LOOKUP(2,1/(Mayo[Ganancia Diaria]<>\"\"),Mayo[Ganancia Diaria])-$O$14,0)","v":-16}]
[null,"2025-05-16",null,null,"",9936,0,20]
[null,"2025-05-19",null,null,"",9936,0,21]
[null,"2025-05-20",null,null,"",9936,0,21]
[null,"2025-05-21",null,null,"",9936,0,21]
[null,"2025-05-22",null,null,"",9936,0,21]
[null,"2025-05-23",null,null,"",9936,0,21]
[null,"2025-05-26",null,null,"",9936,0,22]
[null,"2025-05-27",null,null,"",9936,0,22]
[null,"2025-05-28",null,null,"",9936,0,22]
[null,"2025-05-29",null,null,"",9936,0,22]
[null,"2025-05-30",null,null,{"$f":"IF(D29<>\"\",\"POSITIVA\",IF(C29<>\"\",\"NEGATIVA\",\"\"))","v":""},{"$f":"IF(ISNUMBER($F28),$F28-$C29+$D29,$B$3-$C29+$D29)","v":9936},{"$f":"IF(ISNUMBER($G28),$G28-$C29+$D29,0-$C29+$D29)","v":0},{"$f":"IFERROR(WEEKNUM(B29),\"\")","v":22}]
[null,"2024-05-31",null,null,{"$f":"IF(D30<>\"\",\"POSITIVA\",IF(C30<>\"\",\"NEGATIVA\",\"\"))","v":""},{"$f":"IF(ISNUMBER($F29),$F29-$C30+$D30,$B$3-$C30+$D30)","v":9936},{"$f":"IF(ISNUMBER($G29),$G29-$C30+$D30,0-$C30+$D30)","v":0},{"$f":"IFERROR(WEEKNUM(B30),\"\")","v":22}]

{"sheet":"Junio","index":6,"n_rows":29,"n_cols":22,"rows_kept":29,"cut":false,"hidden":false,"merged":[[6,15,6,16],[6,17,7,17],[8,14,9,14],[8,15,9,15],[8,16,9,16],[8,17,9,17],[18,13,18,14],[26,13,26,14],[27,13,27,14],[6,13,9,13],[6,14,7,14]]}
["Table Name ",{"$f":"Junio[[#Headers],[Dates]]","v":"Dates"},null,null,null,null,null,null,null,null,null,null,null,null,null,null,null,null,null,null,"Table Name ",{"$f":"Junio_Semanal[[#Headers],[Numero De Semana]]","v":"Numero De Semana"}]
["Table Name",{"$f":"MID(_xlfn.FORMULATEXT(B1),2,FIND(\"[\",_xlfn.FORMULATEXT(B1))-2)","v":"Junio"},null,null,null,null,null,null,null,null,null,null,null,null,null,null,null,null,null,null,"Table Name",{"$f":"MID(_xlfn.FORMULATEXT(V1),2,FIND(\"[\",_xlfn.FORMULATEXT(V1))-2)","v":"Junio_Semanal"}]
["Saldo",{"$f":"Mayo!$O$12","v":9920}]
["Fecha de Comienzo","2025-06-01"]
["Fecha de Fin","2025-06-30"]
[]
[null,"Dates","STOP","TAKE","RESULTADO","SALDO","Ganancia Diaria","Numero de Semana","Do not delete",null,null,null,null,"NUMERO DE OPERACIONES","TOTAL OPERACIONES","TIPO",null,"EFECTIVIDAD"]
[null,"2025-06-02",null,null,{"$f":"IF(D8<>\"\",\"POSITIVA\",IF(C8<>\"\",\"NEGATIVA\",\"\"))","v":""},{"$f":"IF(ISNUMBER($F7),$F7-$C8+$D8,$B$3-$C8+$D8)","v":9920},{"$f":"IF(ISNUMBER($G7),$G7-$C8+$D8,0-$C8+$D8)","v":0},{"$f":"IFERROR(WEEKNUM(B8),\"\")","v":23},null,null,null,null,null,null,null,"BUENAS","MALAS"]
[null,"2025-06-03",null,null,"",9920,0,23,null,null,null,null,null,null,{"$f":"$P$9+$Q$9","v":0},{"$f":"COUNTIF(Junio[RESULTADO],\"POSITIVA\")","v":0},{"$f":"COUNTIF(Junio[RESULTADO],\"NEGATIVA\")","v":0},{"$f":"IFERROR($P$9/$O$9,0)","v":0}]
[null,"2025-06-04",null,null,"",9920,0,23]
[null,"2025-06-05",null,null,"",9920,0,23]
[null,"2025-06-06",null,null,"",9920,0,23,null,null,null,null,null,"Total",{"$f":"IFERROR(LOOKUP(2,1/(Junio[SALDO]<>\"\"),Junio[SALDO])-$O$14,0)","v":9904},null,"Numero De Semana","Total"]
[null,"2025-06-09",null,null,"",9920,0,24,null,null,null,null,null,null,null,null,23,{"$f":"SUMIF(Consolidado_Semanal[Numero De Semana],Q13,Consolidado_Semanal[Total])","v":0}]
[null,"2025-06-10",null,null,"",9920,0,24,null,null,null,null,null,"Datos del mercado",16,null,24,{"$f":"SUMIF(Consolidado_Semanal[Numero De Semana],Q14,Consolidado_Semanal[Total])","v":0}]
[null,"2025-06-11",null,null,"",9920,0,24,null,null,null,null,null,null,null,null,25,{"$f":"SUMIF(Consolidado_Semanal[Numero De Semana],Q15,Consolidado_Semanal[Total])","v":0}]
[null,"2025-06-12",null,null,"",9920,0,24,null,null,null,null,null,"Beneficio / Rentabilidad",{"$f":"IFERROR(($O$12/$B$3)-1,0)","v":-1.612903225806428E-3},null,26,{"$f":"SUMIF(Consolidado_Semanal[Numero De Semana],Q16,Consolidado_Semanal[Total])","v":0}]
[null,"2025-06-13",null,null,"",9920,0,24,null,null,null,null,null,null,null,null,27,{"$f":"SUMIF(Consolidado_Semanal[Numero De Semana],Q17,Consolidado_Semanal[Total])","v":0}]
[null,"2025-06-16",null,null,"",9920,0,25,null,null,null,null,null,"Total Mes",{"$f":"IFERROR(LOOKUP(2,1/(Junio[Ganancia Diaria]<>\"\"),Junio[Ganancia Diaria])-$O$14,0)","v":-16}]
[null,"2025-06-17",null,null,"",9920,0,25]
[null,"2025-06-18",null,null,"",9920,0,25]
[null,"2025-06-19",null,null,"",9920,0,25]
[null,"2025-06-20",null,null,"",9920,0,25]
[null,"2025-06-23",null,null,"",9920,0,26]
[null,"2025-06-24",null,null,"",9920,0,26]
[null,"2025-06-25",null,null,"",9920,0,26]
[null,"2025-06-26",null,null,"",9920,0,26]
[null,"2025-06-27",null,null,"",9920,0,26]
[null,"2025-06-30",null,null,"",9920,0,27]
[null,"2023-06-30",null,null,"",9920,0,26]

{"sheet":"Julio","index":7,"n_rows":30,"n_cols":22,"rows_kept":30,"cut":false,"hidden":false,"merged":[[6,15,6,16],[6,17,7,17],[8,14,9,14],[8,15,9,15],[8,16,9,16],[8,17,9,17],[35,10,35,13],[18,13,18,14],[26,13,26,14],[27,13,27,14],[6,13,9,13],[6,14,7,14]]}
["Table Name ",{"$f":"Julio[[#Headers],[Dates]]","v":"Dates"},null,null,null,null,null,null,null,null,null,null,null,null,null,null,null,null,null,null,"Table Name ",{"$f":"Julio_Semanal[[#Headers],[Numero De Semana]]","v":"Numero De Semana"}]
["Table Name",{"$f":"MID(_xlfn.FORMULATEXT(B1),2,FIND(\"[\",_xlfn.FORMULATEXT(B1))-2)","v":"Julio"},null,null,null,null,null,null,null,null,null,null,null,null,null,null,null,null,null,null,"Table Name",{"$f":"MID(_xlfn.FORMULATEXT(V1),2,FIND(\"[\",_xlfn.FORMULATEXT(V1))-2)","v":"Julio_Semanal"}]
["Saldo",{"$f":"Junio!$O$12","v":9904}]
["Fecha de Comienzo","2025-07-01"]
["Fecha de Fin","2025-07-31"]
[]
[null,"Dates","STOP","TAKE","RESULTADO","SALDO","Ganancia Diaria","Numero de Semana","Do not delete",null,null,null,null,"NUMERO DE OPERACIONES","TOTAL OPERACIONES","TIPO",null,"EFECTIVIDAD"]
[null,"2025-07-01",null,null,{"$f":"IF(D8<>\"\",\"POSITIVA\",IF(C8<>\"\",\"NEGATIVA\",\"\"))","v":""},{"$f":"IF(ISNUMBER($F7),$F7-$C8+$D8,$B$3-$C8+$D8)","v":9904},{"$f":"IF(ISNUMBER($G7),$G7-$C8+$D8,0-$C8+$D8)","v":0},{"$f":"IFERROR(WEEKNUM(B8),\"\")","v":27},null,null,null,null,null,null,null,"BUENAS","MALAS"]
[null,"2025-07-02",null,null,"",9904,0,27,null,null,null,null,null,null,{"$f":"$P$9+$Q$9","v":0},{"$f":"COUNTIF(Julio[RESULTADO],\"POSITIVA\")","v":0},{"$f":"COUNTIF(Julio[RESULTADO],\"NEGATIVA\")","v":0},{"$f":"IFERROR($P$9/$O$9,0)","v":0}]
[null,"2025-07-03",null,null,"",9904,0,27]
[null,"2025-07-04",null,null,"",9904,0,27]
[null,"2025-07-07",null,null,"",9904,0,28,null,null,null,null,null,"Total",{"$f":"IFERROR(LOOKUP(2,1/(Julio[SALDO]<>\"\"),Julio[SALDO])-$O$14,0)","v":9888},null,"Numero De Semana","Total"]
[null,"2025-07-08",null,null,"",9904,0,28,null,null,null,null,null,null,null,null,27,{"$f":"SUMIF(Consolidado_Semanal[Numero De Semana],Q13,Consolidado_Semanal[Total])","v":0}]
[null,"2025-07-09",null,null,"",9904,0,28,null,null,null,null,null,"Datos del mercado",16,null,28,{"$f":"SUMIF(Consolidado_Semanal[Numero De Semana],Q14,Consolidado_Semanal[Total])","v":0}]
[null,"2025-07-10",null,null,"",9904,0,28,null,null,null,null,null,null,null,null,29,{"$f":"SUMIF(Consolidado_Semanal[Numero De Semana],Q15,Consolidado_Semanal[Total])","v":0}]
[null,"2025-07-11",null,null,"",9904,0,28,null,null,null,null,null,"Beneficio / Rentabilidad",{"$f":"IFERROR(($O$12/$B$3)-1,0)","v":-1.615508885298822E-3},null,30,{"$f":"SUMIF(Consolidado_Semanal[Numero De Semana],Q16,Consolidado_Semanal[Total])","v":0}]
[null,"2025-07-14",null,null,"",9904,0,29,null,null,null,null,null,null,null,null,31,{"$f":"SUMIF(Consolidado_Semanal[Numero De Semana],Q17,Consolidado_Semanal[Total])","v":0}]
[null,"2025-07-15",null,null,"",9904,0,29,null,null,null,null,null,"Total Mes",{"$f":"IFERROR(LOOKUP(2,1/(Julio[Ganancia Diaria]<>\"\"),Julio[Ganancia Diaria])-$O$14,0)","v":-16}]
[null,"2025-07-16",null,null,"",9904,0,29]
[null,"2025-07-17",null,null,"",9904,0,29]
[null,"2025-07-18",null,null,"",9904,0,29]
[null,"2025-07-21",null,null,"",9904,0,30]
[null,"2025-07-22",null,null,"",9904,0,30]
[null,"2025-07-23",null,null,"",9904,0,30]
[null,"2025-07-24",null,null,"",9904,0,30]
[null,"2025-07-25",null,null,"",9904,0,30]
[null,"2025-07-28",null,null,"",9904,0,31]
[null,"2025-07-29",null,null,"",9904,0,31]
[null,"2025-07-30",null,null,"",9904,0,31]
[null,"2025-07-31",null,null,"",9904,0,31]

{"sheet":"Agosto","index":8,"n_rows":30,"n_cols":22,"rows_kept":30,"cut":false,"hidden":false,"merged":[[6,15,6,16],[6,17,7,17],[8,14,9,14],[8,15,9,15],[8,16,9,16],[8,17,9,17],[18,13,18,14],[26,13,26,14],[27,13,27,14],[6,13,9,13],[6,14,7,14]]}
["Table Name ",{"$f":"Agosto[[#Headers],[Dates]]","v":"Dates"},null,null,null,null,null,null,null,null,null,null,null,null,null,null,null,null,null,null,"Table Name ",{"$f":"Agosto_Semanal[[#Headers],[Numero De Semana]]","v":"Numero De Semana"}]
["Table Name",{"$f":"MID(_xlfn.FORMULATEXT(B1),2,FIND(\"[\",_xlfn.FORMULATEXT(B1))-2)","v":"Agosto"},null,null,null,null,null,null,null,null,null,null,null,null,null,null,null,null,null,null,"Table Name",{"$f":"MID(_xlfn.FORMULATEXT(V1),2,FIND(\"[\",_xlfn.FORMULATEXT(V1))-2)","v":"Agosto_Semanal"}]
["Saldo",{"$f":"Julio!$O$12","v":9888}]
["Fecha de Comienzo","2025-08-01"]
["Fecha de Fin","2025-08-31"]
[]
[null,"Dates","STOP","TAKE","RESULTADO","SALDO","Ganancia Diaria","Numero de Semana","Do not delete",null,null,null,null,"NUMERO DE OPERACIONES","TOTAL OPERACIONES","TIPO",null,"EFECTIVIDAD"]
[null,"2025-08-01",null,null,{"$f":"IF(D8<>\"\",\"POSITIVA\",IF(C8<>\"\",\"NEGATIVA\",\"\"))","v":""},{"$f":"IF(ISNUMBER($F7),$F7-$C8+$D8,$B$3-$C8+$D8)","v":9888},{"$f":"IF(ISNUMBER($G7),$G7-$C8+$D8,0-$C8+$D8)","v":0},{"$f":"IFERROR(WEEKNUM(B8),\"\")","v":31},null,null,null,null,null,null,null,"BUENAS","MALAS"]
[null,"2025-08-04",null,null,"",9888,0,32,null,null,null,null,null,null,{"$f":"$P$9+$Q$9","v":0},{"$f":"COUNTIF(Agosto[RESULTADO],\"POSITIVA\")","v":0},{"$f":"COUNTIF(Agosto[RESULTADO],\"NEGATIVA\")","v":0},{"$f":"IFERROR($P$9/$O$9,0)","v":0}]
[null,"2025-08-05",null,null,"",9888,0,32]
[null,"2025-08-06",null,null,"",9888,0,32]
[null,"2025-08-07",null,null,"",9888,0,32,null,null,null,null,null,"Total",{"$f":"IFERROR(LOOKUP(2,1/(Agosto[SALDO]<>\"\"),Agosto[SALDO])-$O$14,0)","v":9872},null,"Numero De Semana","Total"]
[null,"2025-08-08",null,null,"",9888,0,32,null,null,null,null,null,null,null,null,32,{"$f":"SUMIF(Consolidado_Semanal[Numero De Semana],Q13,Consolidado_Semanal[Total])","v":0}]
[null,"2025-08-11",null,null,"",9888,0,33,null,null,null,null,null,"Datos del mercado",16,null,33,{"$f":"SUMIF(Consolidado_Semanal[Numero De Semana],Q14,Consolidado_Semanal[Total])","v":0}]
[null,"2025-08-12",null,null,"",9888,0,33,null,null,null,null,null,null,null,null,34,{"$f":"SUMIF(Consolidado_Semanal[Numero De Semana],Q15,Consolidado_Semanal[Total])","v":0}]
[null,"2025-08-13",null,null,"",9888,0,33,null,null,null,null,null,"Beneficio / Rentabilidad",{"$f":"IFERROR(($O$12/$B$3)-1,0)","v":-1.6181229773463146E-3},null,35,{"$f":"SUMIF(Consolidado_Semanal[Numero De Semana],Q16,Consolidado_Semanal[Total])","v":0}]
[null,"2025-08-14",null,null,"",9888,0,33,null,null,null,null,null,null,null,null,36,{"$f":"SUMIF(Consolidado_Semanal[Numero De Semana],Q17,Consolidado_Semanal[Total])","v":0}]
[null,"2025-08-15",null,null,"",9888,0,33,null,null,null,null,null,"Total Mes",{"$f":"IFERROR(LOOKUP(2,1/(Agosto[Ganancia Diaria]<>\"\"),Agosto[Ganancia Diaria])-$O$14,0)","v":-16}]
[null,"2025-08-18",null,null,"",9888,0,34]
[null,"2025-08-19",null,null,"",9888,0,34]
[null,"2025-08-20",null,null,"",9888,0,34]
[null,"2025-08-21",null,null,"",9888,0,34]
[null,"2025-08-22",null,null,"",9888,0,34]
[null,"2025-08-25",null,null,"",9888,0,35]
[null,"2025-08-26",null,null,"",9888,0,35]
[null,"2025-08-27",null,null,"",9888,0,35]
[null,"2025-08-28",null,null,"",9888,0,35]
[null,"2025-08-29",null,null,"",9888,0,35]
[null,null,null,null,{"$f":"IF(D29<>\"\",\"POSITIVA\",IF(C29<>\"\",\"NEGATIVA\",\"\"))","v":""},{"$f":"IF(ISNUMBER($F28),$F28-$C29+$D29,$B$3-$C29+$D29)","v":9888},{"$f":"IF(ISNUMBER($G28),$G28-$C29+$D29,0-$C29+$D29)","v":0},{"$f":"IFERROR(WEEKNUM(B29),\"\")","v":0}]
[null,null,null,null,{"$f":"IF(D30<>\"\",\"POSITIVA\",IF(C30<>\"\",\"NEGATIVA\",\"\"))","v":""},{"$f":"IF(ISNUMBER($F29),$F29-$C30+$D30,$B$3-$C30+$D30)","v":9888},{"$f":"IF(ISNUMBER($G29),$G29-$C30+$D30,0-$C30+$D30)","v":0},{"$f":"IFERROR(WEEKNUM(B30),\"\")","v":0}]

{"sheet":"Septiembre","index":9,"n_rows":29,"n_cols":22,"rows_kept":29,"cut":false,"hidden":false,"merged":[[6,15,6,16],[6,17,7,17],[8,14,9,14],[8,15,9,15],[8,16,9,16],[8,17,9,17],[18,13,18,14],[26,13,26,14],[27,13,27,14],[6,13,9,13],[6,14,7,14]]}
["Table Name ",{"$f":"Septiembre[[#Headers],[Dates]]","v":"Dates"},null,null,null,null,null,null,null,null,null,null,null,null,null,null,null,null,null,null,"Table Name ",{"$f":"Septiembre_Semanal[[#Headers],[Numero De Semana]]","v":"Numero De Semana"}]
["Table Name",{"$f":"MID(_xlfn.FORMULATEXT(B1),2,FIND(\"[\",_xlfn.FORMULATEXT(B1))-2)","v":"Septiembre"},null,null,null,null,null,null,null,null,null,null,null,null,null,null,null,null,null,null,"Table Name",{"$f":"MID(_xlfn.FORMULATEXT(V1),2,FIND(\"[\",_xlfn.FORMULATEXT(V1))-2)","v":"Septiembre_Semanal"}]
["Saldo",{"$f":"Agosto!$O$12","v":9872}]
["Fecha de Comienzo","2025-09-01"]
["Fecha de Fin","2025-09-30"]
[]
[null,"Dates","STOP","TAKE","RESULTADO","SALDO","Ganancia Diaria","Numero de Semana","Do not delete",null,null,null,null,"NUMERO DE OPERACIONES","TOTAL OPERACIONES","TIPO",null,"EFECTIVIDAD"]
[null,"2025-09-01",null,null,{"$f":"IF(D8<>\"\",\"POSITIVA\",IF(C8<>\"\",\"NEGATIVA\",\"\"))","v":""},{"$f":"IF(ISNUMBER($F7),$F7-$C8+$D8,$B$3-$C8+$D8)","v":9872},{"$f":"IF(ISNUMBER($G7),$G7-$C8+$D8,0-$C8+$D8)","v":0},{"$f":"IFERROR(WEEKNUM(B8),\"\")","v":36},null,null,null,null,null,null,null,"BUENAS","MALAS"]
[null,"2025-09-02",null,null,"",{"$f":"IF(ISNUMBER($F8),$F8-$C9+$D9,$B$3-$C9+$D9)","v":9872},0,36,null,null,null,null,null,null,{"$f":"$P$9+$Q$9","v":0},{"$f":"COUNTIF(Septiembre[RESULTADO],\"POSITIVA\")","v":0},{"$f":"COUNTIF(Septiembre[RESULTADO],\"NEGATIVA\")","v":0},{"$f":"IFERROR($P$9/$O$9,0)","v":0}]
[null,"2025-09-03",null,null,"",9872,0,36]
[null,"2025-09-04",null,null,"",9872,0,36]
[null,"2025-09-05",null,null,"",9872,0,36,null,null,null,null,null,"Total",{"$f":"IFERROR(LOOKUP(2,1/(Septiembre[SALDO]<>\"\"),Septiembre[SALDO])-$O$14,0)","v":9857},null,"Numero De Semana","Total"]
[null,"2025-09-08",null,null,"",9872,0,37,null,null,null,null,null,null,null,null,36,{"$f":"SUMIF(Consolidado_Semanal[Numero De Semana],Q13,Consolidado_Semanal[Total])","v":0}]
[null,"2025-09-09",null,null,"",9872,0,37,null,null,null,null,null,"Datos del mercado",15,null,37,{"$f":"SUMIF(Consolidado_Semanal[Numero De Semana],Q14,Consolidado_Semanal[Total])","v":0}]
[null,"2025-09-10",null,null,"",9872,0,37,null,null,null,null,null,null,null,null,38,{"$f":"SUMIF(Consolidado_Semanal[Numero De Semana],Q15,Consolidado_Semanal[Total])","v":0}]
[null,"2025-09-11",null,null,"",9872,0,37,null,null,null,null,null,"Beneficio / Rentabilidad",{"$f":"IFERROR(($O$12/$B$3)-1,0)","v":-1.5194489465153449E-3},null,39,{"$f":"SUMIF(Consolidado_Semanal[Numero De Semana],Q16,Consolidado_Semanal[Total])","v":0}]
[null,"2025-09-12",null,null,"",9872,0,37,null,null,null,null,null,null,null,null,40,{"$f":"SUMIF(Consolidado_Semanal[Numero De Semana],Q17,Consolidado_Semanal[Total])","v":0}]
[null,"2025-09-15",null,null,"",9872,0,38,null,null,null,null,null,"Total Mes",{"$f":"IFERROR(LOOKUP(2,1/(Septiembre[Ganancia Diaria]<>\"\"),Septiembre[Ganancia Diaria])-$O$14,0)","v":-15}]
[null,"2025-09-16",null,null,"",9872,0,38]
[null,"2025-09-17",null,null,"",9872,0,38]
[null,"2025-09-18",null,null,"",9872,0,38]
[null,"2025-09-19",null,null,"",9872,0,38]
[null,"2025-09-22",null,null,"",9872,0,39]
[null,"2025-09-23",null,null,"",9872,0,39]
[null,"2025-09-24",null,null,"",9872,0,39]
[null,"2025-09-25",null,null,"",9872,0,39]
[null,"2025-09-26",null,null,"",9872,0,39]
[null,"2025-09-29",null,null,"",9872,0,40]
[null,"2025-09-30",null,null,"",9872,0,40]

{"sheet":"Octubre","index":10,"n_rows":30,"n_cols":22,"rows_kept":30,"cut":false,"hidden":false,"merged":[[6,15,6,16],[6,17,7,17],[8,14,9,14],[8,15,9,15],[8,16,9,16],[8,17,9,17],[18,13,18,14],[26,13,26,14],[27,13,27,14],[6,13,9,13],[6,14,7,14]]}
["Table Name ",{"$f":"Octubre[[#Headers],[Dates]]","v":"Dates"},null,null,null,null,null,null,null,null,null,null,null,null,null,null,null,null,null,null,"Table Name ",{"$f":"Octubre_Semanal[[#Headers],[Numero De Semana]]","v":"Numero De Semana"}]
["Table Name",{"$f":"MID(_xlfn.FORMULATEXT(B1),2,FIND(\"[\",_xlfn.FORMULATEXT(B1))-2)","v":"Octubre"},null,null,null,null,null,null,null,null,null,null,null,null,null,null,null,null,null,null,"Table Name",{"$f":"MID(_xlfn.FORMULATEXT(V1),2,FIND(\"[\",_xlfn.FORMULATEXT(V1))-2)","v":"Octubre_Semanal"}]
["Saldo",{"$f":"Septiembre!$O$12","v":9857}]
["Fecha de Comienzo","2025-10-01"]
["Fecha de Fin","2025-10-31"]
[]
[null,"Dates","STOP","TAKE","RESULTADO","SALDO","Ganancia Diaria","Numero de Semana","Do not delete",null,null,null,null,"NUMERO DE OPERACIONES","TOTAL OPERACIONES","TIPO",null,"EFECTIVIDAD"]
[null,"2025-10-01",null,null,{"$f":"IF(D8<>\"\",\"POSITIVA\",IF(C8<>\"\",\"NEGATIVA\",\"\"))","v":""},{"$f":"IF(ISNUMBER($F7),$F7-$C8+$D8,$B$3-$C8+$D8)","v":9857},{"$f":"IF(ISNUMBER($G7),$G7-$C8+$D8,0-$C8+$D8)","v":0},{"$f":"IFERROR(WEEKNUM(B8),\"\")","v":40},null,null,null,null,null,null,null,"BUENAS","MALAS"]
[null,"2025-10-02",null,null,"",9857,0,40,null,null,null,null,null,null,{"$f":"$P$9+$Q$9","v":0},{"$f":"COUNTIF(Octubre[RESULTADO],\"POSITIVA\")","v":0},{"$f":"COUNTIF(Octubre[RESULTADO],\"NEGATIVA\")","v":0},{"$f":"IFERROR($P$9/$O$9,0)","v":0}]
[null,"2025-10-03",null,null,"",9857,0,40]
[null,"2025-10-06",null,null,"",9857,0,41]
[null,"2025-10-07",null,null,"",9857,0,41,null,null,null,null,null,"Total",{"$f":"IFERROR(LOOKUP(2,1/(Octubre[SALDO]<>\"\"),Octubre[SALDO])-$O$14,0)","v":9841},null,"Numero De Semana","Total"]
[null,"2025-10-08",null,null,"",9857,0,41,null,null,null,null,null,null,null,null,40,{"$f":"SUMIF(Consolidado_Semanal[Numero De Semana],Q13,Consolidado_Semanal[Total])","v":0}]
[null,"2025-10-09",null,null,"",9857,0,41,null,null,null,null,null,"Datos del mercado",16,null,41,{"$f":"SUMIF(Consolidado_Semanal[Numero De Semana],Q14,Consolidado_Semanal[Total])","v":0}]
[null,"2025-10-10",null,null,"",9857,0,41,null,null,null,null,null,null,null,null,42,{"$f":"SUMIF(Consolidado_Semanal[Numero De Semana],Q15,Consolidado_Semanal[Total])","v":0}]
[null,"2025-10-13",null,null,"",9857,0,42,null,null,null,null,null,"Beneficio / Rentabilidad",{"$f":"IFERROR(($O$12/$B$3)-1,0)","v":-1.6232119306076598E-3},null,43,{"$f":"SUMIF(Consolidado_Semanal[Numero De Semana],Q16,Consolidado_Semanal[Total])","v":0}]
[null,"2025-10-14",null,null,"",9857,0,42,null,null,null,null,null,null,null,null,44,{"$f":"SUMIF(Consolidado_Semanal[Numero De Semana],Q17,Consolidado_Semanal[Total])","v":0}]
[null,"2025-10-15",null,null,"",9857,0,42,null,null,null,null,null,"Total Mes",{"$f":"IFERROR(LOOKUP(2,1/(Octubre[Ganancia Diaria]<>\"\"),Octubre[Ganancia Diaria])-$O$14,0)","v":-16}]
[null,"2025-10-16",null,null,"",9857,0,42]
[null,"2025-10-17",null,null,"",9857,0,42]
[null,"2025-10-20",null,null,"",9857,0,43]
[null,"2025-10-21",null,null,"",9857,0,43]
[null,"2025-10-22",null,null,"",9857,0,43]
[null,"2025-10-23",null,null,"",9857,0,43]
[null,"2025-10-24",null,null,"",9857,0,43]
[null,"2025-10-27",null,null,"",9857,0,44]
[null,"2025-10-28",null,null,"",9857,0,44]
[null,"2025-10-29",null,null,"",9857,0,44]
[null,"2025-10-30",null,null,"",9857,0,44]
[null,"2025-10-31",null,null,{"$f":"IF(D30<>\"\",\"POSITIVA\",IF(C30<>\"\",\"NEGATIVA\",\"\"))","v":""},{"$f":"IF(ISNUMBER($F29),$F29-$C30+$D30,$B$3-$C30+$D30)","v":9857},{"$f":"IF(ISNUMBER($G29),$G29-$C30+$D30,0-$C30+$D30)","v":0},{"$f":"IFERROR(WEEKNUM(B30),\"\")","v":44}]

{"sheet":"Noviembre","index":11,"n_rows":29,"n_cols":22,"rows_kept":29,"cut":false,"hidden":false,"merged":[[6,15,6,16],[6,17,7,17],[8,14,9,14],[8,15,9,15],[8,16,9,16],[8,17,9,17],[18,13,18,14],[26,13,26,14],[27,13,27,14],[6,13,9,13],[6,14,7,14]]}
["Table Name ",{"$f":"Noviembre[[#Headers],[Dates]]","v":"Dates"},null,null,null,null,null,null,null,null,null,null,null,null,null,null,null,null,null,null,"Table Name ",{"$f":"Noviembre_Semanal[[#Headers],[Numero De Semana]]","v":"Numero De Semana"}]
["Table Name",{"$f":"MID(_xlfn.FORMULATEXT(B1),2,FIND(\"[\",_xlfn.FORMULATEXT(B1))-2)","v":"Noviembre"},null,null,null,null,null,null,null,null,null,null,null,null,null,null,null,null,null,null,"Table Name",{"$f":"MID(_xlfn.FORMULATEXT(V1),2,FIND(\"[\",_xlfn.FORMULATEXT(V1))-2)","v":"Noviembre_Semanal"}]
["Saldo",{"$f":"Octubre!$O$12","v":9841}]
["Fecha de Comienzo","2025-11-01"]
["Fecha de Fin","2025-11-30"]
[]
[null,"Dates","STOP","TAKE","RESULTADO","SALDO","Ganancia Diaria","Numero de Semana","Do not delete",null,null,null,null,"NUMERO DE OPERACIONES","TOTAL OPERACIONES","TIPO",null,"EFECTIVIDAD"]
[null,"2025-11-03",null,null,{"$f":"IF(D8<>\"\",\"POSITIVA\",IF(C8<>\"\",\"NEGATIVA\",\"\"))","v":""},{"$f":"IF(ISNUMBER($F7),$F7-$C8+$D8,$B$3-$C8+$D8)","v":9841},{"$f":"IF(ISNUMBER($G7),$G7-$C8+$D8,0-$C8+$D8)","v":0},{"$f":"IFERROR(WEEKNUM(B8),\"\")","v":45},null,null,null,null,null,null,null,"BUENAS","MALAS"]
[null,"2025-11-04",null,null,"",9841,0,45,null,null,null,null,null,null,{"$f":"$P$9+$Q$9","v":0},{"$f":"COUNTIF(Noviembre[RESULTADO],\"POSITIVA\")","v":0},{"$f":"COUNTIF(Noviembre[RESULTADO],\"NEGATIVA\")","v":0},{"$f":"IFERROR($P$9/$O$9,0)","v":0}]
[null,"2025-11-05",null,null,"",9841,0,45]
[null,"2025-11-06",null,null,"",9841,0,45]
[null,"2025-11-07",null,null,"",9841,0,45,null,null,null,null,null,"Total",{"$f":"IFERROR(LOOKUP(2,1/(Noviembre[SALDO]<>\"\"),Noviembre[SALDO])-$O$14,0)","v":9825},null,"Numero De Semana","Total"]
[null,"2025-11-10",null,null,"",9841,0,46,null,null,null,null,null,null,null,null,45,{"$f":"SUMIF(Consolidado_Semanal[Numero De Semana],Q13,Consolidado_Semanal[Total])","v":0}]
[null,"2025-11-11",null,null,"",9841,0,46,null,null,null,null,null,"Datos del mercado",16,null,46,{"$f":"SUMIF(Consolidado_Semanal[Numero De Semana],Q14,Consolidado_Semanal[Total])","v":0}]
[null,"2025-11-12",null,null,"",9841,0,46,null,null,null,null,null,null,null,null,47,{"$f":"SUMIF(Consolidado_Semanal[Numero De Semana],Q15,Consolidado_Semanal[Total])","v":0}]
[null,"2025-11-13",null,null,"",9841,0,46,null,null,null,null,null,"Beneficio / Rentabilidad",{"$f":"IFERROR(($O$12/$B$3)-1,0)","v":-1.625851031399228E-3},null,48,{"$f":"SUMIF(Consolidado_Semanal[Numero De Semana],Q16,Consolidado_Semanal[Total])","v":0}]
[null,"2025-11-14",null,null,"",9841,0,46,null,null,null,null,null,null,null,null,49,{"$f":"SUMIF(Consolidado_Semanal[Numero De Semana],Q17,Consolidado_Semanal[Total])","v":0}]
[null,"2025-11-17",null,null,"",9841,0,47,null,null,null,null,null,"Total Mes",{"$f":"IFERROR(LOOKUP(2,1/(Noviembre[Ganancia Diaria]<>\"\"),Noviembre[Ganancia Diaria])-$O$14,0)","v":-16}]
[null,"2025-11-18",null,null,"",9841,0,47]
[null,"2025-11-19",null,null,"",9841,0,47]
[null,"2025-11-20",null,null,"",9841,0,47]
[null,"2025-11-21",null,null,"",9841,0,47]
[null,"2025-11-24",null,null,"",9841,0,48]
[null,"2025-11-25",null,null,"",9841,0,48]
[null,"2025-11-26",null,null,"",9841,0,48]
[null,"2025-11-27",null,null,"",9841,0,48]
[null,"2025-11-28",null,null,"",9841,0,48]
[null,null,null,null,"",9841,0,0]
[null,null,null,null,{"$f":"IF(D29<>\"\",\"POSITIVA\",IF(C29<>\"\",\"NEGATIVA\",\"\"))","v":""},{"$f":"IF(ISNUMBER($F28),$F28-$C29+$D29,$B$3-$C29+$D29)","v":9841},{"$f":"IF(ISNUMBER($G28),$G28-$C29+$D29,0-$C29+$D29)","v":0},{"$f":"IFERROR(WEEKNUM(B29),\"\")","v":0}]

{"sheet":"Diciembre","index":12,"n_rows":30,"n_cols":22,"rows_kept":30,"cut":false,"hidden":false,"merged":[[6,15,6,16],[6,17,7,17],[8,14,9,14],[8,15,9,15],[8,16,9,16],[8,17,9,17],[18,13,18,14],[26,13,26,14],[27,13,27,14],[6,13,9,13],[6,14,7,14]]}
["Table Name ",{"$f":"Diciembre[[#Headers],[Dates]]","v":"Dates"},null,null,null,null,null,null,null,null,null,null,null,null,null,null,null,null,null,null,"Table Name ",{"$f":"Diciembre_Semanal[[#Headers],[Numero De Semana]]","v":"Numero De Semana"}]
["Table Name",{"$f":"MID(_xlfn.FORMULATEXT(B1),2,FIND(\"[\",_xlfn.FORMULATEXT(B1))-2)","v":"Diciembre"},null,null,null,null,null,null,null,null,null,null,null,null,null,null,null,null,null,null,"Table Name",{"$f":"MID(_xlfn.FORMULATEXT(V1),2,FIND(\"[\",_xlfn.FORMULATEXT(V1))-2)","v":"Diciembre_Semanal"}]
["Saldo",{"$f":"Noviembre!$O$12","v":9825}]
["Fecha de Comienzo","2025-12-01"]
["Fecha de Fin","2025-12-31"]
[]
[null,"Dates","STOP","TAKE","RESULTADO","SALDO","Ganancia Diaria","Numero de Semana","Do not delete",null,null,null,null,"NUMERO DE OPERACIONES","TOTAL OPERACIONES","TIPO",null,"EFECTIVIDAD"]
[null,"2025-12-01",null,null,{"$f":"IF(D8<>\"\",\"POSITIVA\",IF(C8<>\"\",\"NEGATIVA\",\"\"))","v":""},{"$f":"IF(ISNUMBER($F7),$F7-$C8+$D8,$B$3-$C8+$D8)","v":9825},{"$f":"IF(ISNUMBER($G7),$G7-$C8+$D8,0-$C8+$D8)","v":0},{"$f":"IFERROR(WEEKNUM(B8),\"\")","v":49},null,null,null,null,null,null,null,"BUENAS","MALAS"]
[null,"2025-12-02",null,null,"",9825,0,49,null,null,null,null,null,null,{"$f":"$P$9+$Q$9","v":0},{"$f":"COUNTIF(Diciembre[RESULTADO],\"POSITIVA\")","v":0},{"$f":"COUNTIF(Diciembre[RESULTADO],\"NEGATIVA\")","v":0},{"$f":"IFERROR($P$9/$O$9,0)","v":0}]
[null,"2025-12-03",null,null,"",9825,0,49]
[null,"2025-12-04",null,null,"",9825,0,49]
[null,"2025-12-05",null,null,"",9825,0,49,null,null,null,null,null,"Total",{"$f":"IFERROR(LOOKUP(2,1/(Diciembre[SALDO]<>\"\"),Diciembre[SALDO])-$O$14,0)","v":9809},null,"Numero De Semana","Total"]
[null,"2025-12-08",null,null,"",9825,0,50,null,null,null,null,null,null,null,null,49,{"$f":"SUMIF(Consolidado_Semanal[Numero De Semana],Q13,Consolidado_Semanal[Total])","v":0}]
[null,"2025-12-09",null,null,"",9825,0,50,null,null,null,null,null,"Datos del mercado",16,null,50,{"$f":"SUMIF(Consolidado_Semanal[Numero De Semana],Q14,Consolidado_Semanal[Total])","v":0}]
[null,"2025-12-10",null,null,"",9825,0,50,null,null,null,null,null,null,null,null,51,{"$f":"SUMIF(Consolidado_Semanal[Numero De Semana],Q15,Consolidado_Semanal[Total])","v":0}]
[null,"2025-12-11",null,null,"",9825,0,50,null,null,null,null,null,"Beneficio / Rentabilidad",{"$f":"IFERROR(($O$12/$B$3)-1,0)","v":-1.6284987277354057E-3},null,52,{"$f":"SUMIF(Consolidado_Semanal[Numero De Semana],Q16,Consolidado_Semanal[Total])","v":0}]
[null,"2025-12-12",null,null,"",9825,0,50,null,null,null,null,null,null,null,null,53,{"$f":"SUMIF(Consolidado_Semanal[Numero De Semana],Q17,Consolidado_Semanal[Total])","v":0}]
[null,"2025-12-15",null,null,"",9825,0,51,null,null,null,null,null,"Total Mes",{"$f":"IFERROR(LOOKUP(2,1/(Diciembre[Ganancia Diaria]<>\"\"),Diciembre[Ganancia Diaria])-$O$14,0)","v":-16}]
[null,"2025-12-16",null,null,"",9825,0,51]
[null,"2025-12-17",null,null,"",9825,0,51]
[null,"2025-12-18",null,null,"",9825,{"$f":"IF(ISNUMBER($G20),$G20-$C21+$D21,0-$C21+$D21)","v":0},51]
[null,"2025-12-19",null,null,"",9825,0,51]
[null,"2025-12-22",null,null,"",9825,0,52]
[null,"2025-12-23",null,null,"",9825,0,52]
[null,"2025-12-24",null,null,"",9825,0,52]
[null,"2025-12-25",null,null,"",9825,0,52]
[null,"2025-12-26",null,null,"",9825,0,52]
[null,"2025-12-29",null,null,"",9825,0,53]
[null,"2025-12-30",null,null,"",9825,0,53]
[null,"2025-12-31",null,null,"",9825,0,53]

{"sheet":"Consolidado","index":13,"n_rows":272,"n_cols":29,"rows_kept":272,"cut":false,"hidden":true,"merged":[[20,13,20,14],[6,13,9,13],[6,14,7,14],[6,15,6,16],[6,17,7,17],[8,14,9,14],[8,15,9,15],[8,16,9,16],[8,17,9,17]]}
["Table Name ",{"$f":"Consolidado[[#Headers],[Dates]]","v":"Dates"},null,null,null,null,null,null,null,null,null,null,null,null,null,null,null,null,null,null,"Table Name ",{"$f":"Consolidado_Semanal[[#Headers],[Numero De Semana]]","v":"Numero De Semana"}]
["Table Name",{"$f":"MID(_xlfn.FORMULATEXT(B1),2,FIND(\"[\",_xlfn.FORMULATEXT(B1))-2)","v":"Consolidado"},null,null,null,null,null,null,null,null,null,null,null,null,null,null,null,null,null,null,"Table Name",{"$f":"MID(_xlfn.FORMULATEXT(V1),2,FIND(\"[\",_xlfn.FORMULATEXT(V1))-2)","v":"Consolidado_Semanal"}]
[]
[]
[]
[]
[null,"Dates","STOP","TAKE","RESULTADO","SALDO","Ganancia Diaria","Numero de Semana","Do not delete",null,"Resultado","Consecutivos",null,"NUMERO DE OPERACIONES","TOTAL OPERACIONES","TIPO",null,"EFECTIVIDAD",null,"Numero De Semana","Total",null,null,"STOP","TAKE","RESULTADO","Consecutivos","Sum Stop","Sum Takes"]
[null,"2020-01-30",null,null,"",79996.25,0,5,null,null,"",{"$f":"CountConsVal(K8:K272)","v":""},null,null,null,"BUENAS","MALAS",null,null,5,{"$f":"SUMIF(Consolidado[Numero de Semana],$T8,Consolidado[TAKE])-SUMIF(Consolidado[Numero de Semana],$T8,Consolidado[STOP])","v":0},null,null,null,null,"",{"$f":"CountConsVal(Z8:Z272)","v":""}]
[null,"2020-01-31",null,null,"",79996.25,0,5,null,null,"","",null,null,{"$f":"$P$9+$Q$9","v":0},{"$f":"COUNTIF(Consolidado[RESULTADO],\"POSITIVA\")","v":0},{"$f":"COUNTIF(Consolidado[RESULTADO],\"NEGATIVA\")","v":0},{"$f":"IFERROR($P$9/$O$9,0)","v":0},null,31,{"$f":"SUMIF(Consolidado[Numero de Semana],$T9,Consolidado[TAKE])-SUMIF(Consolidado[Numero de Semana],$T9,Consolidado[STOP])","v":0},null,null,null,null,"",""]
[null,"2020-07-31",null,null,"",79906.25,0,31,null,null,"","",null,null,null,null,null,null,null,44,{"$f":"SUMIF(Consolidado[Numero de Semana],$T10,Consolidado[TAKE])-SUMIF(Consolidado[Numero de Semana],$T10,Consolidado[STOP])","v":0},null,null,null,null,"",""]
[null,"2020-10-30",null,null,"",79861.25,0,44,null,null,"","",null,null,null,null,null,null,null,1,{"$f":"SUMIF(Consolidado[Numero de Semana],$T11,Consolidado[TAKE])-SUMIF(Consolidado[Numero de Semana],$T11,Consolidado[STOP])","v":0},null,null,null,null,"",""]
[null,"2021-01-01",null,null,"",79996.25,0,1,null,null,"","",null,"Total",{"$f":"IFERROR(LOOKUP(2,1/(Consolidado[SALDO]<>\"\"),Consolidado[SALDO])-$O$14,0)","v":79816.25},null,null,null,null,2,{"$f":"SUMIF(Consolidado[Numero de Semana],$T12,Consolidado[TAKE])-SUMIF(Consolidado[Numero de Semana],$T12,Consolidado[STOP])","v":0},null,null,null,null,"",""]
[null,"2021-01-04",null,null,"",79996.25,0,2,null,null,"","",null,null,null,null,null,null,null,3,{"$f":"SUMIF(Consolidado[Numero de Semana],$T13,Consolidado[TAKE])-SUMIF(Consolidado[Numero de Semana],$T13,Consolidado[STOP])","v":0},null,null,null,null,"",""]
[null,"2021-01-05",null,null,"",79996.25,0,2,null,null,"","",null,"Datos del mercado",15,null,null,null,null,4,{"$f":"SUMIF(Consolidado[Numero de Semana],$T14,Consolidado[TAKE])-SUMIF(Consolidado[Numero de Semana],$T14,Consolidado[STOP])","v":0},null,null,null,null,"",""]
[null,"2021-01-06",null,null,"",79996.25,0,2,null,null,"","",null,null,null,null,null,null,null,6,{"$f":"SUMIF(Consolidado[Numero de Semana],$T15,Consolidado[TAKE])-SUMIF(Consolidado[Numero de Semana],$T15,Consolidado[STOP])","v":0},null,null,null,null,"",""]
[null,"2021-01-07",null,null,"",79996.25,0,2,null,null,"","",null,null,null,null,null,null,null,7,{"$f":"SUMIF(Consolidado[Numero de Semana],$T16,Consolidado[TAKE])-SUMIF(Consolidado[Numero de Semana],$T16,Consolidado[STOP])","v":0},null,null,null,null,"",""]
[null,"2021-01-08",null,null,"",79996.25,0,2,null,null,"","",null,null,null,null,null,null,null,8,{"$f":"SUMIF(Consolidado[Numero de Semana],$T17,Consolidado[TAKE])-SUMIF(Consolidado[Numero de Semana],$T17,Consolidado[STOP])","v":0},null,null,null,null,"",""]
[null,"2021-01-11",null,null,"",79996.25,0,3,null,null,"","",null,"Beneficio / Rentabilidad",null,null,"Max Perdida Consecutiva","Maxima Ganancia Consecutiva",null,9,{"$f":"SUMIF(Consolidado[Numero de Semana],$T18,Consolidado[TAKE])-SUMIF(Consolidado[Numero de Semana],$T18,Consolidado[STOP])","v":0},null,null,null,null,"",""]
[null,"2021-01-12",null,null,"",79996.25,0,3,null,null,"","",null,null,null,null,{"$f":"MAX(IF(Z8:Z389=\"NEGATIVA\",AB8:AB389))","v":0},{"$f":"MAX(IF(Z8:Z389=\"POSITIVA\",AC8:AC389))","v":0},null,10,{"$f":"SUMIF(Consolidado[Numero de Semana],$T19,Consolidado[TAKE])-SUMIF(Consolidado[Numero de Semana],$T19,Consolidado[STOP])","v":0},null,null,null,null,"",""]
[null,"2021-01-13",null,null,"",79996.25,0,3,null,null,"","",null,null,null,null,null,null,null,11,{"$f":"SUMIF(Consolidado[Numero de Semana],$T20,Consolidado[TAKE])-SUMIF(Consolidado[Numero de Semana],$T20,Consolidado[STOP])","v":0},null,null,null,null,"",""]
[null,"2021-01-14",null,null,"",79996.25,0,3,null,null,"","",null,"Resultados Consecutivos maximos",null,null,"Mayor Perdida","Mayor Ganancia",null,12,{"$f":"SUMIF(Consolidado[Numero de Semana],$T21,Consolidado[TAKE])-SUMIF(Consolidado[Numero de Semana],$T21,Consolidado[STOP])","v":0},null,null,null,null,"",""]
[null,"2021-01-15",null,null,"",79996.25,0,3,null,null,"","",null,"Positivos","Negativos",null,{"$f":"MAX(Consolidado[STOP])","v":0},{"$f":"MAX(Consolidado[TAKE])","v":0},null,13,{"$f":"SUMIF(Consolidado[Numero de Semana],$T22,Consolidado[TAKE])-SUMIF(Consolidado[Numero de Semana],$T22,Consolidado[STOP])","v":0},null,null,null,null,"",""]
[null,"2021-01-18",null,null,"",79996.25,0,4,null,null,"","",null,{"$f":"MAX(IF($K$8:$K$272=\"POSITIVA\",$L$8:$L$272))","v":0},{"$f":"MAX(IF($K$8:$K$272=\"NEGATIVA\",$L$8:$L$272))","v":0},null,null,null,null,14,{"$f":"SUMIF(Consolidado[Numero de Semana],$T23,Consolidado[TAKE])-SUMIF(Consolidado[Numero de Semana],$T23,Consolidado[STOP])","v":0},null,null,null,null,"",""]
[null,"2021-01-19",null,null,"",79996.25,0,4,null,null,"","",null,null,null,null,null,null,null,15,{"$f":"SUMIF(Consolidado[Numero de Semana],$T24,Consolidado[TAKE])-SUMIF(Consolidado[Numero de Semana],$T24,Consolidado[STOP])","v":0},null,null,null,null,"",""]
[null,"2021-01-20",null,null,"",79996.25,0,4,null,null,"","",null,"STOP","TAKE",null,"Dias sin Trade en el año",null,null,16,{"$f":"SUMIF(Consolidado[Numero de Semana],$T25,Consolidado[TAKE])-SUMIF(Consolidado[Numero de Semana],$T25,Consolidado[STOP])","v":0},null,null,null,null,"",""]
[null,"2021-01-21",null,null,"",79996.25,0,4,null,null,"","",null,{"$f":"SUM(Consolidado[STOP])","v":0},{"$f":"SUM(Consolidado[TAKE])","v":0},null,{"$f":"COUNTIFS(Consolidado[STOP],\"\",Consolidado[TAKE],\"\")","v":265},null,null,17,{"$f":"SUMIF(Consolidado[Numero de Semana],$T26,Consolidado[TAKE])-SUMIF(Consolidado[Numero de Semana],$T26,Consolidado[STOP])","v":0},null,null,null,null,"",""]
[null,"2021-01-22",null,null,"",79996.25,0,4,null,null,"","",null,null,null,null,null,null,null,18,{"$f":"SUMIF(Consolidado[Numero de Semana],$T27,Consolidado[TAKE])-SUMIF(Consolidado[Numero de Semana],$T27,Consolidado[STOP])","v":0},null,null,null,null,"",""]
[null,"2021-01-25",null,null,"",79996.25,0,5,null,null,"","",null,null,null,null,null,null,null,19,{"$f":"SUMIF(Consolidado[Numero de Semana],$T28,Consolidado[TAKE])-SUMIF(Consolidado[Numero de Semana],$T28,Consolidado[STOP])","v":0},null,null,null,null,"",""]
[null,"2021-01-26",null,null,"",79996.25,0,5,null,null,"","",null,"Dias Consecutivos sin trades en el año",null,null,null,null,null,20,{"$f":"SUMIF(Consolidado[Numero de Semana],$T29,Consolidado[TAKE])-SUMIF(Consolidado[Numero de Semana],$T29,Consolidado[STOP])","v":0},null,null,null,null,"",""]
[null,"2021-01-27",null,null,"",79996.25,0,5,null,null,"","",null,{"$f":"MAX(IF($L$8:$L$272=\"\",$K$8:$K$272))","v":0},null,null,null,null,null,21,{"$f":"SUMIF(Consolidado[Numero de Semana],$T30,Consolidado[TAKE])-SUMIF(Consolidado[Numero de Semana],$T30,Consolidado[STOP])","v":0},null,null,null,null,"",""]
[null,"2021-01-28",null,null,"",79996.25,0,5,null,null,"","",null,null,null,null,null,null,null,22,{"$f":"SUMIF(Consolidado[Numero de Semana],$T31,Consolidado[TAKE])-SUMIF(Consolidado[Numero de Semana],$T31,Consolidado[STOP])","v":0},null,null,null,null,"",""]
[null,"2021-01-29",null,null,"",79996.25,0,5,null,null,"","",null,null,null,null,null,null,null,23,{"$f":"SUMIF(Consolidado[Numero de Semana],$T32,Consolidado[TAKE])-SUMIF(Consolidado[Numero de Semana],$T32,Consolidado[STOP])","v":0},null,null,null,null,"",""]
[null,"2021-02-01",null,null,"",79981.25,0,6,null,null,"","",null,null,null,null,null,null,null,24,{"$f":"SUMIF(Consolidado[Numero de Semana],$T33,Consolidado[TAKE])-SUMIF(Consolidado[Numero de Semana],$T33,Consolidado[STOP])","v":0},null,null,null,null,"",""]
[null,"2021-02-02",null,null,"",79981.25,0,6,null,null,"","",null,null,null,null,null,null,null,25,{"$f":"SUMIF(Consolidado[Numero de Semana],$T34,Consolidado[TAKE])-SUMIF(Consolidado[Numero de Semana],$T34,Consolidado[STOP])","v":0},null,null,null,null,"",""]
[null,"2021-02-03",null,null,"",79981.25,0,6,null,null,"","",null,null,null,null,null,null,null,26,{"$f":"SUMIF(Consolidado[Numero de Semana],$T35,Consolidado[TAKE])-SUMIF(Consolidado[Numero de Semana],$T35,Consolidado[STOP])","v":0},null,null,null,null,"",""]
[null,"2021-02-04",null,null,"",79981.25,0,6,null,null,"","",null,null,null,null,null,null,null,27,{"$f":"SUMIF(Consolidado[Numero de Semana],$T36,Consolidado[TAKE])-SUMIF(Consolidado[Numero de Semana],$T36,Consolidado[STOP])","v":0},null,null,null,null,"",""]
[null,"2021-02-05",null,null,"",79981.25,0,6,null,null,"","",null,null,null,null,null,null,null,28,{"$f":"SUMIF(Consolidado[Numero de Semana],$T37,Consolidado[TAKE])-SUMIF(Consolidado[Numero de Semana],$T37,Consolidado[STOP])","v":0},null,null,null,null,"",""]
[null,"2021-02-08",null,null,"",79981.25,0,7,null,null,"","",null,null,null,null,null,null,null,29,{"$f":"SUMIF(Consolidado[Numero de Semana],$T38,Consolidado[TAKE])-SUMIF(Consolidado[Numero de Semana],$T38,Consolidado[STOP])","v":0},null,null,null,null,"",""]
[null,"2021-02-09",null,null,"",79981.25,0,7,null,null,"","",null,null,null,null,null,null,null,30,{"$f":"SUMIF(Consolidado[Numero de Semana],$T39,Consolidado[TAKE])-SUMIF(Consolidado[Numero de Semana],$T39,Consolidado[STOP])","v":0},null,null,null,null,"",""]
[null,"2021-02-10",null,null,"",79981.25,0,7,null,null,"","",null,null,null,null,null,null,null,32,{"$f":"SUMIF(Consolidado[Numero de Semana],$T40,Consolidado[TAKE])-SUMIF(Consolidado[Numero de Semana],$T40,Consolidado[STOP])","v":0},null,null,null,null,"",""]
[null,"2021-02-11",null,null,"",79981.25,0,7,null,null,"","",null,null,null,null,null,null,null,33,{"$f":"SUMIF(Consolidado[Numero de Semana],$T41,Consolidado[TAKE])-SUMIF(Consolidado[Numero de Semana],$T41,Consolidado[STOP])","v":0},null,null,null,null,"",""]
[null,"2021-02-12",null,null,"",79981.25,0,7,null,null,"","",null,null,null,null,null,null,null,34,{"$f":"SUMIF(Consolidado[Numero de Semana],$T42,Consolidado[TAKE])-SUMIF(Consolidado[Numero de Semana],$T42,Consolidado[STOP])","v":0},null,null,null,null,"",""]
[null,"2021-02-15",null,null,"",79981.25,0,8,null,null,"","",null,null,null,null,null,null,null,35,{"$f":"SUMIF(Consolidado[Numero de Semana],$T43,Consolidado[TAKE])-SUMIF(Consolidado[Numero de Semana],$T43,Consolidado[STOP])","v":0},null,null,null,null,"",""]
[null,"2021-02-16",null,null,"",79981.25,0,8,null,null,"","",null,null,null,null,null,null,null,36,{"$f":"SUMIF(Consolidado[Numero de Semana],$T44,Consolidado[TAKE])-SUMIF(Consolidado[Numero de Semana],$T44,Consolidado[STOP])","v":0},null,null,null,null,"",""]
[null,"2021-02-17",null,null,"",79981.25,0,8,null,null,"","",null,null,null,null,null,null,null,37,{"$f":"SUMIF(Consolidado[Numero de Semana],$T45,Consolidado[TAKE])-SUMIF(Consolidado[Numero de Semana],$T45,Consolidado[STOP])","v":0},null,null,null,null,"",""]
[null,"2021-02-18",null,null,"",79981.25,0,8,null,null,"","",null,null,null,null,null,null,null,38,{"$f":"SUMIF(Consolidado[Numero de Semana],$T46,Consolidado[TAKE])-SUMIF(Consolidado[Numero de Semana],$T46,Consolidado[STOP])","v":0},null,null,null,null,"",""]
[null,"2021-02-19",null,null,"",79981.25,0,8,null,null,"","",null,null,null,null,null,null,null,39,{"$f":"SUMIF(Consolidado[Numero de Semana],$T47,Consolidado[TAKE])-SUMIF(Consolidado[Numero de Semana],$T47,Consolidado[STOP])","v":0},null,null,null,null,"",""]
[null,"2021-02-22",null,null,"",79981.25,0,9,null,null,"","",null,null,null,null,null,null,null,40,{"$f":"SUMIF(Consolidado[Numero de Semana],$T48,Consolidado[TAKE])-SUMIF(Consolidado[Numero de Semana],$T48,Consolidado[STOP])","v":0},null,null,null,null,"",""]
[null,"2021-02-23",null,null,"",79981.25,0,9,null,null,"","",null,null,null,null,null,null,null,41,{"$f":"SUMIF(Consolidado[Numero de Semana],$T49,Consolidado[TAKE])-SUMIF(Consolidado[Numero de Semana],$T49,Consolidado[STOP])","v":0},null,null,null,null,"",""]
[null,"2021-02-24",null,null,"",79981.25,0,9,null,null,"","",null,null,null,null,null,null,null,42,{"$f":"SUMIF(Consolidado[Numero de Semana],$T50,Consolidado[TAKE])-SUMIF(Consolidado[Numero de Semana],$T50,Consolidado[STOP])","v":0},null,null,null,null,"",""]
[null,"2021-02-25",null,null,"",79981.25,0,9,null,null,"","",null,null,null,null,null,null,null,43,{"$f":"SUMIF(Consolidado[Numero de Semana],$T51,Consolidado[TAKE])-SUMIF(Consolidado[Numero de Semana],$T51,Consolidado[STOP])","v":0},null,null,null,null,"",""]
[null,"2021-02-26",null,null,"",79981.25,0,9,null,null,"","",null,null,null,null,null,null,null,45,{"$f":"SUMIF(Consolidado[Numero de Semana],$T52,Consolidado[TAKE])-SUMIF(Consolidado[Numero de Semana],$T52,Consolidado[STOP])","v":0},null,null,null,null,"",""]
[null,"2021-03-01",null,null,"",79966.25,0,10,null,null,"","",null,null,null,null,null,null,null,46,{"$f":"SUMIF(Consolidado[Numero de Semana],$T53,Consolidado[TAKE])-SUMIF(Consolidado[Numero de Semana],$T53,Consolidado[STOP])","v":0},null,null,null,null,"",""]
[null,"2021-03-02",null,null,"",79966.25,0,10,null,null,"","",null,null,null,null,null,null,null,47,{"$f":"SUMIF(Consolidado[Numero de Semana],$T54,Consolidado[TAKE])-SUMIF(Consolidado[Numero de Semana],$T54,Consolidado[STOP])","v":0},null,null,null,null,"",""]
[null,"2021-03-03",null,null,"",79966.25,0,10,null,null,"","",null,null,null,null,null,null,null,48,{"$f":"SUMIF(Consolidado[Numero de Semana],$T55,Consolidado[TAKE])-SUMIF(Consolidado[Numero de Semana],$T55,Consolidado[STOP])","v":0},null,null,null,null,"",""]
[null,"2021-03-04",null,null,"",79966.25,0,10,null,null,"","",null,null,null,null,null,null,null,49,{"$f":"SUMIF(Consolidado[Numero de Semana],$T56,Consolidado[TAKE])-SUMIF(Consolidado[Numero de Semana],$T56,Consolidado[STOP])","v":0},null,null,null,null,"",""]
[null,"2021-03-05",null,null,"",79966.25,0,10,null,null,"","",null,null,null,null,null,null,null,50,{"$f":"SUMIF(Consolidado[Numero de Semana],$T57,Consolidado[TAKE])-SUMIF(Consolidado[Numero de Semana],$T57,Consolidado[STOP])","v":0},null,null,null,null,"",""]
[null,"2021-03-08",null,null,"",79966.25,0,11,null,null,"","",null,null,null,null,null,null,null,51,{"$f":"SUMIF(Consolidado[Numero de Semana],$T58,Consolidado[TAKE])-SUMIF(Consolidado[Numero de Semana],$T58,Consolidado[STOP])","v":0},null,null,null,null,"",""]
[null,"2021-03-09",null,null,"",79966.25,0,11,null,null,"","",null,null,null,null,null,null,null,52,{"$f":"SUMIF(Consolidado[Numero de Semana],$T59,Consolidado[TAKE])-SUMIF(Consolidado[Numero de Semana],$T59,Consolidado[STOP])","v":0},null,null,null,null,"",""]
[null,"2021-03-10",null,null,"",79966.25,0,11,null,null,"","",null,null,null,null,null,null,null,53,{"$f":"SUMIF(Consolidado[Numero de Semana],$T60,Consolidado[TAKE])-SUMIF(Consolidado[Numero de Semana],$T60,Consolidado[STOP])","v":0},null,null,null,null,"",""]
[null,"2021-03-11",null,null,"",79966.25,0,11,null,null,"","",null,null,null,null,null,null,null,null,null,null,null,null,null,"",""]
[null,"2021-03-12",null,null,"",79966.25,0,11,null,null,"","",null,null,null,null,null,null,null,null,null,null,null,null,null,"",""]
[null,"2021-03-15",null,null,"",79966.25,0,12,null,null,"","",null,null,null,null,null,null,null,null,null,null,null,null,null,"",""]
[null,"2021-03-16",null,null,"",79966.25,0,12,null,null,"","",null,null,null,null,null,null,null,null,null,null,null,null,null,"",""]
[null,"2021-03-17",null,null,"",79966.25,0,12,null,null,"","",null,null,null,null,null,null,null,null,null,null,null,null,null,"",""]
[null,"2021-03-18",null,null,"",79966.25,0,12,null,null,"","",null,null,null,null,null,null,null,null,null,null,null,null,null,"",""]
[null,"2021-03-19",null,null,"",79966.25,0,12,null,null,"","",null,null,null,null,null,null,null,null,null,null,null,null,null,"",""]
[null,"2021-03-22",null,null,"",79966.25,0,13,null,null,"","",null,null,null,null,null,null,null,null,null,null,null,null,null,"",""]
[null,"2021-03-23",null,null,"",79966.25,0,13,null,null,"","",null,null,null,null,null,null,null,null,null,null,null,null,null,"",""]
[null,"2021-03-24",null,null,"",79966.25,0,13,null,null,"","",null,null,null,null,null,null,null,null,null,null,null,null,null,"",""]
[null,"2021-03-25",null,null,"",79966.25,0,13,null,null,"","",null,null,null,null,null,null,null,null,null,null,null,null,null,"",""]
[null,"2021-03-26",null,null,"",79966.25,0,13,null,null,"","",null,null,null,null,null,null,null,null,null,null,null,null,null,"",""]
[null,"2021-03-29",null,null,"",79966.25,0,14,null,null,"","",null,null,null,null,null,null,null,null,null,null,null,null,null,"",""]
[null,"2021-03-30",null,null,"",79966.25,0,14,null,null,"","",null,null,null,null,null,null,null,null,null,null,null,null,null,"",""]
[null,"2021-03-31",null,null,"",79966.25,0,14,null,null,"","",null,null,null,null,null,null,null,null,null,null,null,null,null,"",""]
[null,"2021-04-01",null,null,"",79951.25,0,14,null,null,"","",null,null,null,null,null,null,null,null,null,null,null,null,null,"",""]
[null,"2021-04-02",null,null,"",79951.25,0,14,null,null,"","",null,null,null,null,null,null,null,null,null,null,null,null,null,"",""]
[null,"2021-04-05",null,null,"",79951.25,0,15,null,null,"","",null,null,null,null,null,null,null,null,null,null,null,null,null,"",""]
[null,"2021-04-06",null,null,"",79951.25,0,15,null,null,"","",null,null,null,null,null,null,null,null,null,null,null,null,null,"",""]
[null,"2021-04-07",null,null,"",79951.25,0,15,null,null,"","",null,null,null,null,null,null,null,null,null,null,null,null,null,"",""]
[null,"2021-04-08",null,null,"",79951.25,0,15,null,null,"","",null,null,null,null,null,null,null,null,null,null,null,null,null,"",""]
[null,"2021-04-09",null,null,"",79951.25,0,15,null,null,"","",null,null,null,null,null,null,null,null,null,null,null,null,null,"",""]
[null,"2021-04-12",null,null,"",79951.25,0,16,null,null,"","",null,null,null,null,null,null,null,null,null,null,null,null,null,"",""]
[null,"2021-04-13",null,null,"",79951.25,0,16,null,null,"","",null,null,null,null,null,null,null,null,null,null,null,null,null,"",""]
[null,"2021-04-14",null,null,"",79951.25,0,16,null,null,"","",null,null,null,null,null,null,null,null,null,null,null,null,null,"",""]
[null,"2021-04-15",null,null,"",79951.25,0,16,null,null,"","",null,null,null,null,null,null,null,null,null,null,null,null,null,"",""]
[null,"2021-04-16",null,null,"",79951.25,0,16,null,null,"","",null,null,null,null,null,null,null,null,null,null,null,null,null,"",""]
[null,"2021-04-19",null,null,"",79951.25,0,17,null,null,"","",null,null,null,null,null,null,null,null,null,null,null,null,null,"",""]
[null,"2021-04-20",null,null,"",79951.25,0,17,null,null,"","",null,null,null,null,null,null,null,null,null,null,null,null,null,"",""]
[null,"2021-04-21",null,null,"",79951.25,0,17,null,null,"","",null,null,null,null,null,null,null,null,null,null,null,null,null,"",""]
[null,"2021-04-22",null,null,"",79951.25,0,17,null,null,"","",null,null,null,null,null,null,null,null,null,null,null,null,null,"",""]
[null,"2021-04-23",null,null,"",79951.25,0,17,null,null,"","",null,null,null,null,null,null,null,null,null,null,null,null,null,"",""]
[null,"2021-04-26",null,null,"",79951.25,0,18,null,null,"","",null,null,null,null,null,null,null,null,null,null,null,null,null,"",""]
[null,"2021-04-27",null,null,"",79951.25,0,18,null,null,"","",null,null,null,null,null,null,null,null,null,null,null,null,null,"",""]
[null,"2021-04-28",null,null,"",79951.25,0,18,null,null,"","",null,null,null,null,null,null,null,null,null,null,null,null,null,"",""]
[null,"2021-04-29",null,null,"",79951.25,0,18,null,null,"","",null,null,null,null,null,null,null,null,null,null,null,null,null,"",""]
[null,"2021-04-30",null,null,"",79951.25,0,18,null,null,"","",null,null,null,null,null,null,null,null,null,null,null,null,null,"",""]
[null,"2021-05-03",null,null,"",79936.25,0,19,null,null,"","",null,null,null,null,null,null,null,null,null,null,null,null,null,"",""]
[null,"2021-05-04",null,null,"",79936.25,0,19,null,null,"","",null,null,null,null,null,null,null,null,null,null,null,null,null,"",""]
[null,"2021-05-05",null,null,"",79936.25,0,19,null,null,"","",null,null,null,null,null,null,null,null,null,null,null,null,null,"",""]
[null,"2021-05-06",null,null,"",79936.25,0,19,null,null,"","",null,null,null,null,null,null,null,null,null,null,null,null,null,"",""]
[null,"2021-05-07",null,null,"",79936.25,0,19,null,null,"","",null,null,null,null,null,null,null,null,null,null,null,null,null,"",""]
[null,"2021-05-10",null,null,"",79936.25,0,20,null,null,"","",null,null,null,null,null,null,null,null,null,null,null,null,null,"",""]
[null,"2021-05-11",null,null,"",79936.25,0,20,null,null,"","",null,null,null,null,null,null,null,null,null,null,null,null,null,"",""]
[null,"2021-05-12",null,null,"",79936.25,0,20,null,null,"","",null,null,null,null,null,null,null,null,null,null,null,null,null,"",""]
[null,"2021-05-13",null,null,"",79936.25,0,20,null,null,"","",null,null,null,null,null,null,null,null,null,null,null,null,null,"",""]
[null,"2021-05-14",null,null,"",79936.25,0,20,null,null,"","",null,null,null,null,null,null,null,null,null,null,null,null,null,"",""]
[null,"2021-05-17",null,null,"",79936.25,0,21,null,null,"","",null,null,null,null,null,null,null,null,null,null,null,null,null,"",""]
[null,"2021-05-18",null,null,"",79936.25,0,21,null,null,"","",null,null,null,null,null,null,null,null,null,null,null,null,null,"",""]
[null,"2021-05-19",null,null,"",79936.25,0,21,null,null,"","",null,null,null,null,null,null,null,null,null,null,null,null,null,"",""]
[null,"2021-05-20",null,null,"",79936.25,0,21,null,null,"","",null,null,null,null,null,null,null,null,null,null,null,null,null,"",""]
[null,"2021-05-21",null,null,"",79936.25,0,21,null,null,"","",null,null,null,null,null,null,null,null,null,null,null,null,null,"",""]
[null,"2021-05-24",null,null,"",79936.25,0,22,null,null,"","",null,null,null,null,null,null,null,null,null,null,null,null,null,"",""]
[null,"2021-05-25",null,null,"",79936.25,0,22,null,null,"","",null,null,null,null,null,null,null,null,null,null,null,null,null,"",""]
[null,"2021-05-26",null,null,"",79936.25,0,22,null,null,"","",null,null,null,null,null,null,null,null,null,null,null,null,null,"",""]
[null,"2021-05-27",null,null,"",79936.25,0,22,null,null,"","",null,null,null,null,null,null,null,null,null,null,null,null,null,"",""]
[null,"2021-05-28",null,null,"",79936.25,0,22,null,null,"","",null,null,null,null,null,null,null,null,null,null,null,null,null,"",""]
[null,"2021-05-31",null,null,"",79936.25,0,23,null,null,"","",null,null,null,null,null,null,null,null,null,null,null,null,null,"",""]
[null,"2021-06-01",null,null,"",79921.25,0,23,null,null,"","",null,null,null,null,null,null,null,null,null,null,null,null,null,"",""]
[null,"2021-06-02",null,null,"",79921.25,0,23,null,null,"","",null,null,null,null,null,null,null,null,null,null,null,null,null,"",""]
[null,"2021-06-03",null,null,"",79921.25,0,23,null,null,"","",null,null,null,null,null,null,null,null,null,null,null,null,null,"",""]
[null,"2021-06-04",null,null,"",79921.25,0,23,null,null,"","",null,null,null,null,null,null,null,null,null,null,null,null,null,"",""]
[null,"2021-06-07",null,null,"",79921.25,0,24,null,null,"","",null,null,null,null,null,null,null,null,null,null,null,null,null,"",""]
[null,"2021-06-08",null,null,"",79921.25,0,24,null,null,"","",null,null,null,null,null,null,null,null,null,null,null,null,null,"",""]
[null,"2021-06-09",null,null,"",79921.25,0,24,null,null,"","",null,null,null,null,null,null,null,null,null,null,null,null,null,"",""]
[null,"2021-06-10",null,null,"",79921.25,0,24,null,null,"","",null,null,null,null,null,null,null,null,null,null,null,null,null,"",""]
[null,"2021-06-11",null,null,"",79921.25,0,24,null,null,"","",null,null,null,null,null,null,null,null,null,null,null,null,null,"",""]
[null,"2021-06-14",null,null,"",79921.25,0,25,null,null,"","",null,null,null,null,null,null,null,null,null,null,null,null,null,"",""]
[null,"2021-06-15",null,null,"",79921.25,0,25,null,null,"","",null,null,null,null,null,null,null,null,null,null,null,null,null,"",""]
[null,"2021-06-16",null,null,"",79921.25,0,25,null,null,"","",null,null,null,null,null,null,null,null,null,null,null,null,null,"",""]
[null,"2021-06-17",null,null,"",79921.25,0,25,null,null,"","",null,null,null,null,null,null,null,null,null,null,null,null,null,"",""]
[null,"2021-06-18",null,null,"",79921.25,0,25,null,null,"","",null,null,null,null,null,null,null,null,null,null,null,null,null,"",""]
[null,"2021-06-21",null,null,"",79921.25,0,26,null,null,"","",null,null,null,null,null,null,null,null,null,null,null,null,null,"",""]
[null,"2021-06-22",null,null,"",79921.25,0,26,null,null,"","",null,null,null,null,null,null,null,null,null,null,null,null,null,"",""]
[null,"2021-06-23",null,null,"",79921.25,0,26,null,null,"","",null,null,null,null,null,null,null,null,null,null,null,null,null,"",""]
[null,"2021-06-24",null,null,"",79921.25,0,26,null,null,"","",null,null,null,null,null,null,null,null,null,null,null,null,null,"",""]
[null,"2021-06-25",null,null,"",79921.25,0,26,null,null,"","",null,null,null,null,null,null,null,null,null,null,null,null,null,"",""]
[null,"2021-06-28",null,null,"",79921.25,0,27,null,null,"","",null,null,null,null,null,null,null,null,null,null,null,null,null,"",""]
[null,"2021-06-29",null,null,"",79921.25,0,27,null,null,"","",null,null,null,null,null,null,null,null,null,null,null,null,null,"",""]
[null,"2021-06-30",null,null,"",79921.25,0,27,null,null,"","",null,null,null,null,null,null,null,null,null,null,null,null,null,"",""]
[null,"2021-07-01",null,null,"",79906.25,0,27,null,null,"","",null,null,null,null,null,null,null,null,null,null,null,null,null,"",""]
[null,"2021-07-02",null,null,"",79906.25,0,27,null,null,"","",null,null,null,null,null,null,null,null,null,null,null,null,null,"",""]
[null,"2021-07-05",null,null,"",79906.25,0,28,null,null,"","",null,null,null,null,null,null,null,null,null,null,null,null,null,"",""]
[null,"2021-07-06",null,null,"",79906.25,0,28,null,null,"","",null,null,null,null,null,null,null,null,null,null,null,null,null,"",""]
[null,"2021-07-07",null,null,"",79906.25,0,28,null,null,"","",null,null,null,null,null,null,null,null,null,null,null,null,null,"",""]
[null,"2021-07-08",null,null,"",79906.25,0,28,null,null,"","",null,null,null,null,null,null,null,null,null,null,null,null,null,"",""]
[null,"2021-07-09",null,null,"",79906.25,0,28,null,null,"","",null,null,null,null,null,null,null,null,null,null,null,null,null,"",""]
[null,"2021-07-12",null,null,"",79906.25,0,29,null,null,"","",null,null,null,null,null,null,null,null,null,null,null,null,null,"",""]
[null,"2021-07-13",null,null,"",79906.25,0,29,null,null,"","",null,null,null,null,null,null,null,null,null,null,null,null,null,"",""]
[null,"2021-07-14",null,null,"",79906.25,0,29,null,null,"","",null,null,null,null,null,null,null,null,null,null,null,null,null,"",""]
[null,"2021-07-15",null,null,"",79906.25,0,29,null,null,"","",null,null,null,null,null,null,null,null,null,null,null,null,null,"",""]
[null,"2021-07-16",null,null,"",79906.25,0,29,null,null,"","",null,null,null,null,null,null,null,null,null,null,null,null,null,"",""]
[null,"2021-07-19",null,null,"",79906.25,0,30,null,null,"","",null,null,null,null,null,null,null,null,null,null,null,null,null,"",""]
[null,"2021-07-20",null,null,"",79906.25,0,30,null,null,"","",null,null,null,null,null,null,null,null,null,null,null,null,null,"",""]
[null,"2021-07-21",null,null,"",79906.25,0,30,null,null,"","",null,null,null,null,null,null,null,null,null,null,null,null,null,"",""]
[null,"2021-07-22",null,null,"",79906.25,0,30,null,null,"","",null,null,null,null,null,null,null,null,null,null,null,null,null,"",""]
[null,"2021-07-23",null,null,"",79906.25,0,30,null,null,"","",null,null,null,null,null,null,null,null,null,null,null,null,null,"",""]
[null,"2021-07-26",null,null,"",79906.25,0,31,null,null,"","",null,null,null,null,null,null,null,null,null,null,null,null,null,"",""]
[null,"2021-07-27",null,null,"",79906.25,0,31,null,null,"","",null,null,null,null,null,null,null,null,null,null,null,null,null,"",""]
[null,"2021-07-28",null,null,"",79906.25,0,31,null,null,"","",null,null,null,null,null,null,null,null,null,null,null,null,null,"",""]
[null,"2021-07-29",null,null,"",79906.25,0,31,null,null,"","",null,null,null,null,null,null,null,null,null,null,null,null,null,"",""]
[null,"2021-07-30",null,null,"",79906.25,0,31,null,null,"","",null,null,null,null,null,null,null,null,null,null,null,null,null,"",""]
[null,"2021-08-02",null,null,"",79891.25,0,32,null,null,"","",null,null,null,null,null,null,null,null,null,null,null,null,null,"",""]
[null,"2021-08-03",null,null,"",79891.25,0,32,null,null,"","",null,null,null,null,null,null,null,null,null,null,null,null,null,"",""]
[null,"2021-08-04",null,null,"",79891.25,0,32,null,null,"","",null,null,null,null,null,null,null,null,null,null,null,null,null,"",""]
[null,"2021-08-05",null,null,"",79891.25,0,32,null,null,"","",null,null,null,null,null,null,null,null,null,null,null,null,null,"",""]
[null,"2021-08-06",null,null,"",79891.25,0,32,null,null,"","",null,null,null,null,null,null,null,null,null,null,null,null,null,"",""]
[null,"2021-08-09",null,null,"",79891.25,0,33,null,null,"","",null,null,null,null,null,null,null,null,null,null,null,null,null,"",""]
[null,"2021-08-10",null,null,"",79891.25,0,33,null,null,"","",null,null,null,null,null,null,null,null,null,null,null,null,null,"",""]
[null,"2021-08-11",null,null,"",79891.25,0,33,null,null,"","",null,null,null,null,null,null,null,null,null,null,null,null,null,"",""]
[null,"2021-08-12",null,null,"",79891.25,0,33,null,null,"","",null,null,null,null,null,null,null,null,null,null,null,null,null,"",""]
[null,"2021-08-13",null,null,"",79891.25,0,33,null,null,"","",null,null,null,null,null,null,null,null,null,null,null,null,null,"",""]
[null,"2021-08-16",null,null,"",79891.25,0,34,null,null,"","",null,null,null,null,null,null,null,null,null,null,null,null,null,"",""]
[null,"2021-08-17",null,null,"",79891.25,0,34,null,null,"","",null,null,null,null,null,null,null,null,null,null,null,null,null,"",""]
[null,"2021-08-18",null,null,"",79891.25,0,34,null,null,"","",null,null,null,null,null,null,null,null,null,null,null,null,null,"",""]
[null,"2021-08-19",null,null,"",79891.25,0,34,null,null,"","",null,null,null,null,null,null,null,null,null,null,null,null,null,"",""]
[null,"2021-08-20",null,null,"",79891.25,0,34,null,null,"","",null,null,null,null,null,null,null,null,null,null,null,null,null,"",""]
[null,"2021-08-23",null,null,"",79891.25,0,35,null,null,"","",null,null,null,null,null,null,null,null,null,null,null,null,null,"",""]
[null,"2021-08-24",null,null,"",79891.25,0,35,null,null,"","",null,null,null,null,null,null,null,null,null,null,null,null,null,"",""]
[null,"2021-08-25",null,null,"",79891.25,0,35,null,null,"","",null,null,null,null,null,null,null,null,null,null,null,null,null,"",""]
[null,"2021-08-26",null,null,"",79891.25,0,35,null,null,"","",null,null,null,null,null,null,null,null,null,null,null,null,null,"",""]
[null,"2021-08-27",null,null,"",79891.25,0,35,null,null,"","",null,null,null,null,null,null,null,null,null,null,null,null,null,"",""]
[null,"2021-08-30",null,null,"",79891.25,0,36,null,null,"","",null,null,null,null,null,null,null,null,null,null,null,null,null,"",""]
[null,"2021-08-31",null,null,"",79891.25,0,36,null,null,"","",null,null,null,null,null,null,null,null,null,null,null,null,null,"",""]
[null,"2021-09-01",null,null,"",79876.25,0,36,null,null,"","",null,null,null,null,null,null,null,null,null,null,null,null,null,"",""]
[null,"2021-09-02",null,null,"",79876.25,0,36,null,null,"","",null,null,null,null,null,null,null,null,null,null,null,null,null,"",""]
[null,"2021-09-03",null,null,"",79876.25,0,36,null,null,"","",null,null,null,null,null,null,null,null,null,null,null,null,null,"",""]
[null,"2021-09-06",null,null,"",79876.25,0,37,null,null,"","",null,null,null,null,null,null,null,null,null,null,null,null,null,"",""]
[null,"2021-09-07",null,null,"",79876.25,0,37,null,null,"","",null,null,null,null,null,null,null,null,null,null,null,null,null,"",""]
[null,"2021-09-08",null,null,"",79876.25,0,37,null,null,"","",null,null,null,null,null,null,null,null,null,null,null,null,null,"",""]
[null,"2021-09-09",null,null,"",79876.25,0,37,null,null,"","",null,null,null,null,null,null,null,null,null,null,null,null,null,"",""]
[null,"2021-09-10",null,null,"",79876.25,0,37,null,null,"","",null,null,null,null,null,null,null,null,null,null,null,null,null,"",""]
[null,"2021-09-13",null,null,"",79876.25,0,38,null,null,"","",null,null,null,null,null,null,null,null,null,null,null,null,null,"",""]
[null,"2021-09-14",null,null,"",79876.25,0,38,null,null,"","",null,null,null,null,null,null,null,null,null,null,null,null,null,"",""]
[null,"2021-09-15",null,null,"",79876.25,0,38,null,null,"","",null,null,null,null,null,null,null,null,null,null,null,null,null,"",""]
[null,"2021-09-16",null,null,"",79876.25,0,38,null,null,"","",null,null,null,null,null,null,null,null,null,null,null,null,null,"",""]
[null,"2021-09-17",null,null,"",79876.25,0,38,null,null,"","",null,null,null,null,null,null,null,null,null,null,null,null,null,"",""]
[null,"2021-09-20",null,null,"",79876.25,0,39,null,null,"","",null,null,null,null,null,null,null,null,null,null,null,null,null,"",""]
[null,"2021-09-21",null,null,"",79876.25,0,39,null,null,"","",null,null,null,null,null,null,null,null,null,null,null,null,null,"",""]
[null,"2021-09-22",null,null,"",79876.25,0,39,null,null,"","",null,null,null,null,null,null,null,null,null,null,null,null,null,"",""]
[null,"2021-09-23",null,null,"",79876.25,0,39,null,null,"","",null,null,null,null,null,null,null,null,null,null,null,null,null,"",""]
[null,"2021-09-24",null,null,"",79876.25,0,39,null,null,"","",null,null,null,null,null,null,null,null,null,null,null,null,null,"",""]
[null,"2021-09-27",null,null,"",79876.25,0,40,null,null,"","",null,null,null,null,null,null,null,null,null,null,null,null,null,"",""]
[null,"2021-09-28",null,null,"",79876.25,0,40,null,null,"","",null,null,null,null,null,null,null,null,null,null,null,null,null,"",""]
[null,"2021-09-29",null,null,"",79876.25,0,40,null,null,"","",null,null,null,null,null,null,null,null,null,null,null,null,null,"",""]
[null,"2021-09-30",null,null,"",79876.25,0,40,null,null,"","",null,null,null,null,null,null,null,null,null,null,null,null,null,"",""]
[null,"2021-10-01",null,null,"",79861.25,0,40,null,null,"","",null,null,null,null,null,null,null,null,null,null,null,null,null,"",""]
[null,"2021-10-04",null,null,"",79861.25,0,41,null,null,"","",null,null,null,null,null,null,null,null,null,null,null,null,null,"",""]
[null,"2021-10-05",null,null,"",79861.25,0,41,null,null,"","",null,null,null,null,null,null,null,null,null,null,null,null,null,"",""]
[null,"2021-10-06",null,null,"",79861.25,0,41,null,null,"","",null,null,null,null,null,null,null,null,null,null,null,null,null,"",""]
[null,"2021-10-07",null,null,"",79861.25,0,41,null,null,"","",null,null,null,null,null,null,null,null,null,null,null,null,null,"",""]
[null,"2021-10-08",null,null,"",79861.25,0,41,null,null,"","",null,null,null,null,null,null,null,null,null,null,null,null,null,"",""]
[null,"2021-10-11",null,null,"",79861.25,0,42,null,null,"","",null,null,null,null,null,null,null,null,null,null,null,null,null,"",""]
[null,"2021-10-12",null,null,"",79861.25,0,42,null,null,"","",null,null,null,null,null,null,null,null,null,null,null,null,null,"",""]
[null,"2021-10-13",null,null,"",79861.25,0,42,null,null,"","",null,null,null,null,null,null,null,null,null,null,null,null,null,"",""]
[null,"2021-10-14",null,null,"",79861.25,0,42,null,null,"","",null,null,null,null,null,null,null,null,null,null,null,null,null,"",""]
[null,"2021-10-15",null,null,"",79861.25,0,42,null,null,"","",null,null,null,null,null,null,null,null,null,null,null,null,null,"",""]
[null,"2021-10-18",null,null,"",79861.25,0,43,null,null,"","",null,null,null,null,null,null,null,null,null,null,null,null,null,"",""]
[null,"2021-10-19",null,null,"",79861.25,0,43,null,null,"","",null,null,null,null,null,null,null,null,null,null,null,null,null,"",""]
[null,"2021-10-20",null,null,"",79861.25,0,43,null,null,"","",null,null,null,null,null,null,null,null,null,null,null,null,null,"",""]
[null,"2021-10-21",null,null,"",79861.25,0,43,null,null,"","",null,null,null,null,null,null,null,null,null,null,null,null,null,"",""]
[null,"2021-10-22",null,null,"",79861.25,0,43,null,null,"","",null,null,null,null,null,null,null,null,null,null,null,null,null,"",""]
[null,"2021-10-25",null,null,"",79861.25,0,44,null,null,"","",null,null,null,null,null,null,null,null,null,null,null,null,null,"",""]
[null,"2021-10-26",null,null,"",79861.25,0,44,null,null,"","",null,null,null,null,null,null,null,null,null,null,null,null,null,"",""]
[null,"2021-10-27",null,null,"",79861.25,0,44,null,null,"","",null,null,null,null,null,null,null,null,null,null,null,null,null,"",""]
[null,"2021-10-28",null,null,"",79861.25,0,44,null,null,"","",null,null,null,null,null,null,null,null,null,null,null,null,null,"",""]
[null,"2021-10-29",null,null,"",79861.25,0,44,null,null,"","",null,null,null,null,null,null,null,null,null,null,null,null,null,"",""]
[null,"2021-11-01",null,null,"",79846.25,0,45,null,null,"","",null,null,null,null,null,null,null,null,null,null,null,null,null,"",""]
[null,"2021-11-02",null,null,"",79846.25,0,45,null,null,"","",null,null,null,null,null,null,null,null,null,null,null,null,null,"",""]
[null,"2021-11-03",null,null,"",79846.25,0,45,null,null,"","",null,null,null,null,null,null,null,null,null,null,null,null,null,"",""]
[null,"2021-11-04",null,null,"",79846.25,0,45,null,null,"","",null,null,null,null,null,null,null,null,null,null,null,null,null,"",""]
[null,"2021-11-05",null,null,"",79846.25,0,45,null,null,"","",null,null,null,null,null,null,null,null,null,null,null,null,null,"",""]
[null,"2021-11-08",null,null,"",79846.25,0,46,null,null,"","",null,null,null,null,null,null,null,null,null,null,null,null,null,"",""]
[null,"2021-11-09",null,null,"",79846.25,0,46,null,null,"","",null,null,null,null,null,null,null,null,null,null,null,null,null,"",""]
[null,"2021-11-10",null,null,"",79846.25,0,46,null,null,"","",null,null,null,null,null,null,null,null,null,null,null,null,null,"",""]
[null,"2021-11-11",null,null,"",79846.25,0,46,null,null,"","",null,null,null,null,null,null,null,null,null,null,null,null,null,"",""]
[null,"2021-11-12",null,null,"",79846.25,0,46,null,null,"","",null,null,null,null,null,null,null,null,null,null,null,null,null,"",""]
[null,"2021-11-15",null,null,"",79846.25,0,47,null,null,"","",null,null,null,null,null,null,null,null,null,null,null,null,null,"",""]
[null,"2021-11-16",null,null,"",79846.25,0,47,null,null,"","",null,null,null,null,null,null,null,null,null,null,null,null,null,"",""]
[null,"2021-11-17",null,null,"",79846.25,0,47,null,null,"","",null,null,null,null,null,null,null,null,null,null,null,null,null,"",""]
[null,"2021-11-18",null,null,"",79846.25,0,47,null,null,"","",null,null,null,null,null,null,null,null,null,null,null,null,null,"",""]
[null,"2021-11-19",null,null,"",79846.25,0,47,null,null,"","",null,null,null,null,null,null,null,null,null,null,null,null,null,"",""]
[null,"2021-11-22",null,null,"",79846.25,0,48,null,null,"","",null,null,null,null,null,null,null,null,null,null,null,null,null,"",""]
[null,"2021-11-23",null,null,"",79846.25,0,48,null,null,"","",null,null,null,null,null,null,null,null,null,null,null,null,null,"",""]
[null,"2021-11-24",null,null,"",79846.25,0,48,null,null,"","",null,null,null,null,null,null,null,null,null,null,null,null,null,"",""]
[null,"2021-11-25",null,null,"",79846.25,0,48,null,null,"","",null,null,null,null,null,null,null,null,null,null,null,null,null,"",""]
[null,"2021-11-26",null,null,"",79846.25,0,48,null,null,"","",null,null,null,null,null,null,null,null,null,null,null,null,null,"",""]
[null,"2021-11-29",null,null,"",79846.25,0,49,null,null,"","",null,null,null,null,null,null,null,null,null,null,null,null,null,"",""]
[null,"2021-11-30",null,null,"",79846.25,0,49,null,null,"","",null,null,null,null,null,null,null,null,null,null,null,null,null,"",""]
[null,"2021-12-01",null,null,"",79831.25,0,49,null,null,"","",null,null,null,null,null,null,null,null,null,null,null,null,null,"",""]
[null,"2021-12-02",null,null,"",79831.25,0,49,null,null,"","",null,null,null,null,null,null,null,null,null,null,null,null,null,"",""]
[null,"2021-12-03",null,null,"",79831.25,0,49,null,null,"","",null,null,null,null,null,null,null,null,null,null,null,null,null,"",""]
[null,"2021-12-06",null,null,"",79831.25,0,50,null,null,"","",null,null,null,null,null,null,null,null,null,null,null,null,null,"",""]
[null,"2021-12-07",null,null,"",79831.25,0,50,null,null,"","",null,null,null,null,null,null,null,null,null,null,null,null,null,"",""]
[null,"2021-12-08",null,null,"",79831.25,0,50,null,null,"","",null,null,null,null,null,null,null,null,null,null,null,null,null,"",""]
[null,"2021-12-09",null,null,"",79831.25,0,50,null,null,"","",null,null,null,null,null,null,null,null,null,null,null,null,null,"",""]
[null,"2021-12-10",null,null,"",79831.25,0,50,null,null,"","",null,null,null,null,null,null,null,null,null,null,null,null,null,"",""]
[null,"2021-12-13",null,null,"",79831.25,0,51,null,null,"","",null,null,null,null,null,null,null,null,null,null,null,null,null,"",""]
[null,"2021-12-14",null,null,"",79831.25,0,51,null,null,"","",null,null,null,null,null,null,null,null,null,null,null,null,null,"",""]
[null,"2021-12-15",null,null,"",79831.25,0,51,null,null,"","",null,null,null,null,null,null,null,null,null,null,null,null,null,"",""]
[null,"2021-12-16",null,null,"",79831.25,0,51,null,null,"","",null,null,null,null,null,null,null,null,null,null,null,null,null,"",""]
[null,"2021-12-17",null,null,"",79831.25,0,51,null,null,"","",null,null,null,null,null,null,null,null,null,null,null,null,null,"",""]
[null,"2021-12-20",null,null,"",79831.25,0,52,null,null,"","",null,null,null,null,null,null,null,null,null,null,null,null,null,"",""]
[null,"2021-12-21",null,null,"",79831.25,0,52,null,null,"","",null,null,null,null,null,null,null,null,null,null,null,null,null,"",""]
[null,"2021-12-22",null,null,"",79831.25,0,52,null,null,"","",null,null,null,null,null,null,null,null,null,null,null,null,null,"",""]
[null,"2021-12-23",null,null,"",79831.25,0,52,null,null,"","",null,null,null,null,null,null,null,null,null,null,null,null,null,"",""]
[null,"2021-12-24",null,null,"",79831.25,0,52,null,null,"","",null,null,null,null,null,null,null,null,null,null,null,null,null,"",""]
[null,"2021-12-27",null,null,"",79831.25,0,53,null,null,"","",null,null,null,null,null,null,null,null,null,null,null,null,null,"",""]
[null,"2021-12-28",null,null,"",79831.25,0,53,null,null,"","",null,null,null,null,null,null,null,null,null,null,null,null,null,"",""]
[null,"2021-12-29",null,null,"",79831.25,0,53,null,null,"","",null,null,null,null,null,null,null,null,null,null,null,null,null,"",""]
[null,"2021-12-30",null,null,"",79831.25,0,53,null,null,"","",null,null,null,null,null,null,null,null,null,null,null,null,null,"",""]
[null,"2021-12-31",null,null,"",79831.25,0,53,null,null,"",265,null,null,null,null,null,null,null,null,null,null,null,null,null,"",265,{"$f":"IF(AND(AA272>=2,Z272=\"NEGATIVA\"),SUM(X8:OFFSET(X272,0,0)),\"\")","v":""},{"$f":"IF(AND(AA272>=2,Z272=\"POSITIVA\"),SUM(Y8:OFFSET(Y272,0,0)),\"\")","v":""}]